Workbook

Sheet 考勤
I1: =SUM(I3:I199) -> 23500 | Q1: =SUM(Q3:Q199) -> 74.6 | S1: =SUM(S8:S199) -> 0
A2: 序号 | B2: 考勤来源 | C2: 姓名 | D2: 年龄 | E2: 级别 | F2: 类别 | G2: 工种 | H2: 工资 | I2: 合计 | J2: 月份 | K2: 项目名称 | L2: 用工科目 | M2: 单位 | N2: 包工组 | O2: 组织者 | P2: 负责人 | Q2: 日工数 | R2: 包工天数 | S2: 包工金额 | T2: 1号 | U2: 2号 | V2: 3号 | W2: 4号 | X2: 5号 | Y2: 6号 | Z2: 7号 | AA2: 8号 | AB2: 9号 | AC2: 10号 | AD2: 11号 | AE2: 12号 | AF2: 13号 | AG2: 14号 | AH2: 15号 | AI2: 16号 | AJ2: 17号 | AK2: 18号 | AL2: 19号 | AM2: 20号 | AN2: 21号 | AO2: 22号 | AP2: 23号 | AQ2: 24号 | AR2: 25号 | AS2: 26号 | AT2: 27号 | AU2: 28号 | AV2: 29号 | AW2: 30号 | AX2: 31号
A3: 1 | B3: 电子考勤 | C3: 郝月桥 | H3: =VLOOKUP(C3,企业管理结算!$D:$E,2,0) -> 300 | I3: =H3*Q3 -> 8100 | J3: 2 | Q3: 27 | T3: - | U3: 10 | V3: 10 | W3: 10 | X3: 10 | Y3: 10 | Z3: 10 | AA3: 10 | AB3: 10 | AC3: 10 | AD3: 10 | AE3: 10 | AF3: 10 | AG3: 10 | AH3: 10 | AI3: 10 | AJ3: 10 | AK3: 10 | AL3: 10 | AM3: 10 | AN3: 10 | AO3: 10 | AP3: 10 | AQ3: 10 | AR3: 10 | AS3: 10 | AT3: 10 | AU3: 10 | AV3: - | AW3: - | AX3: -
A4: 2 | B4: 电子考勤 | C4: 李文亮 | H4: =VLOOKUP(C4,企业管理结算!$D:$E,2,0) -> 300 | I4: =H4*Q4 -> 6600 | J4: 2 | Q4: 22 | T4: - | U4: - | V4: - | W4: - | X4: - | Y4: - | Z4: 10 | AA4: 10 | AB4: 10 | AC4: 10 | AD4: 10 | AE4: 10 | AF4: 10 | AG4: 10 | AH4: 10 | AI4: 10 | AJ4: 10 | AK4: 10 | AL4: 10 | AM4: 10 | AN4: 10 | AO4: 10 | AP4: 10 | AQ4: 10 | AR4: 10 | AS4: 10 | AT4: 10 | AU4: 10 | AV4: - | AW4: - | AX4: -
A5: 4 | B5: 电子考勤 | C5: 秦振文 | H5: =VLOOKUP(C5,企业管理结算!$D:$E,2,0) -> 340 | I5: =H5*Q5 -> 1360 | J5: 2 | Q5: 4 | T5: - | U5: - | V5: - | W5: - | X5: - | Y5: - | Z5: - | AA5: - | AB5: - | AC5: - | AD5: - | AE5: - | AF5: - | AG5: - | AH5: - | AI5: - | AJ5: - | AK5: - | AL5: - | AM5: - | AN5: - | AO5: - | AP5: - | AQ5: 10 | AR5: 10 | AS5: 10 | AT5: 10 | AU5: - | AV5: - | AW5: - | AX5: -
A6: 6 | B6: 电子考勤 | C6: 杨艳彬 | H6: =VLOOKUP(C6,企业管理结算!$D:$E,2,0) -> 350 | I6: =H6*Q6 -> 6720 | J6: 2 | Q6: 19.2 | T6: - | U6: - | V6: - | W6: - | X6: - | Y6: - | Z6: - | AA6: - | AB6: - | AC6: 10 | AD6: 10 | AE6: 10 | AF6: 10 | AG6: 10 | AH6: 10 | AI6: 10 | AJ6: 10 | AK6: 10 | AL6: 10 | AM6: 10 | AN6: 10 | AO6: 10 | AP6: 10 | AQ6: 10 | AR6: 10 | AS6: 10 | AT6: 12 | AU6: 10 | AV6: - | AW6: - | AX6: -
A7: 8 | B7: 电子考勤 | C7: 杨胜利 | H7: =VLOOKUP(C7,企业管理结算!$D:$E,2,0) -> 300 | I7: =H7*Q7 -> 720 | J7: 2 | Q7: 2.4 | T7: - | U7: - | V7: - | W7: - | X7: - | Y7: - | Z7: - | AA7: - | AB7: - | AC7: - | AD7: - | AE7: - | AF7: - | AG7: - | AH7: - | AI7: - | AJ7: - | AK7: - | AL7: - | AM7: - | AN7: - | AO7: - | AP7: - | AQ7: - | AR7: - | AS7: - | AT7: 12 | AU7: 12 | AV7: - | AW7: - | AX7: -
A8: 9 | B8: 电子考勤 | C8: 郝月桥 | H8: =VLOOKUP(C8,企业管理结算!$D:$E,2,0) -> 300 | I8: 0 | T8: - | U8: - | V8: - | W8: - | X8: - | Y8: - | Z8: - | AA8: - | AB8: - | AC8: - | AD8: - | AE8: - | AF8: - | AG8: - | AH8: - | AI8: - | AJ8: - | AK8: - | AL8: - | AM8: - | AN8: - | AO8: - | AP8: - | AQ8: - | AR8: - | AS8: - | AT8: - | AU8: - | AV8: - | AW8: - | AX8: -
A9: 10 | B9: 电子考勤 | C9: 李文亮 | H9: =VLOOKUP(C9,企业管理结算!$D:$E,2,0) -> 300 | I9: 0 | T9: - | U9: - | V9: - | W9: - | X9: - | Y9: - | Z9: - | AA9: - | AB9: - | AC9: - | AD9: - | AE9: - | AF9: - | AG9: - | AH9: - | AI9: - | AJ9: - | AK9: - | AL9: - | AM9: - | AN9: - | AO9: - | AP9: - | AQ9: - | AR9: - | AS9: - | AT9: - | AU9: - | AV9: - | AW9: - | AX9: -
A10: 11 | B10: 电子考勤 | C10: 李文庆 | H10: =VLOOKUP(C10,企业管理结算!$D:$E,2,0) -> 290 | I10: 0 | T10: - | U10: - | V10: - | W10: - | X10: - | Y10: - | Z10: - | AA10: - | AB10: - | AC10: - | AD10: - | AE10: - | AF10: - | AG10: - | AH10: - | AI10: - | AJ10: - | AK10: - | AL10: - | AM10: - | AN10: - | AO10: - | AP10: - | AQ10: - | AR10: - | AS10: - | AT10: - | AU10: - | AV10: - | AW10: - | AX10: -
A11: 12 | B11: 电子考勤 | C11: 秦振文 | H11: =VLOOKUP(C11,企业管理结算!$D:$E,2,0) -> 340 | I11: 0 | T11: - | U11: - | V11: - | W11: - | X11: - | Y11: - | Z11: - | AA11: - | AB11: - | AC11: - | AD11: - | AE11: - | AF11: - | AG11: - | AH11: - | AI11: - | AJ11: - | AK11: - | AL11: - | AM11: - | AN11: - | AO11: - | AP11: - | AQ11: - | AR11: - | AS11: - | AT11: - | AU11: - | AV11: - | AW11: - | AX11: -
A12: 13 | B12: 电子考勤 | C12: 李文魁 | H12: =VLOOKUP(C12,企业管理结算!$D:$E,2,0) -> 300 | I12: 0 | T12: - | U12: - | V12: - | W12: - | X12: - | Y12: - | Z12: - | AA12: - | AB12: - | AC12: - | AD12: - | AE12: - | AF12: - | AG12: - | AH12: - | AI12: - | AJ12: - | AK12: - | AL12: - | AM12: - | AN12: - | AO12: - | AP12: - | AQ12: - | AR12: - | AS12: - | AT12: - | AU12: - | AV12: - | AW12: - | AX12: -
A13: 14 | B13: 电子考勤 | C13: 杨艳彬 | H13: =VLOOKUP(C13,企业管理结算!$D:$E,2,0) -> 350 | I13: 0 | T13: - | U13: - | V13: - | W13: - | X13: - | Y13: - | Z13: - | AA13: - | AB13: - | AC13: - | AD13: - | AE13: - | AF13: - | AG13: - | AH13: - | AI13: - | AJ13: - | AK13: - | AL13: - | AM13: - | AN13: - | AO13: - | AP13: - | AQ13: - | AR13: - | AS13: - | AT13: - | AU13: - | AV13: - | AW13: - | AX13: -
A14: 15 | B14: 电子考勤 | C14: 王胜山 | H14: =VLOOKUP(C14,企业管理结算!$D:$E,2,0) -> 300 | I14: 0 | T14: - | U14: - | V14: - | W14: - | X14: - | Y14: - | Z14: - | AA14: - | AB14: - | AC14: - | AD14: - | AE14: - | AF14: - | AG14: - | AH14: - | AI14: - | AJ14: - | AK14: - | AL14: - | AM14: - | AN14: - | AO14: - | AP14: - | AQ14: - | AR14: - | AS14: - | AT14: - | AU14: - | AV14: - | AW14: - | AX14: -
A15: 16 | B15: 电子考勤 | C15: 杨胜利 | H15: =VLOOKUP(C15,企业管理结算!$D:$E,2,0) -> 300 | I15: 0 | T15: - | U15: - | V15: - | W15: - | X15: - | Y15: - | Z15: - | AA15: - | AB15: - | AC15: - | AD15: - | AE15: - | AF15: - | AG15: - | AH15: - | AI15: - | AJ15: - | AK15: - | AL15: - | AM15: - | AN15: - | AO15: - | AP15: - | AQ15: - | AR15: - | AS15: - | AT15: - | AU15: - | AV15: - | AW15: - | AX15: -
A16: 17 | B16: 电子考勤 | C16: 郝月桥 | H16: =VLOOKUP(C16,企业管理结算!$D:$E,2,0) -> 300 | I16: 0 | T16: - | U16: - | V16: - | W16: - | X16: - | Y16: - | Z16: - | AA16: - | AB16: - | AC16: - | AD16: - | AE16: - | AF16: - | AG16: - | AH16: - | AI16: - | AJ16: - | AK16: - | AL16: - | AM16: - | AN16: - | AO16: - | AP16: - | AQ16: - | AR16: - | AS16: - | AT16: - | AU16: - | AV16: - | AW16: - | AX16: -
A17: 18 | B17: 电子考勤 | C17: 李文亮 | H17: =VLOOKUP(C17,企业管理结算!$D:$E,2,0) -> 300 | I17: 0 | T17: - | U17: - | V17: - | W17: - | X17: - | Y17: - | Z17: - | AA17: - | AB17: - | AC17: - | AD17: - | AE17: - | AF17: - | AG17: - | AH17: - | AI17: - | AJ17: - | AK17: - | AL17: - | AM17: - | AN17: - | AO17: - | AP17: - | AQ17: - | AR17: - | AS17: - | AT17: - | AU17: - | AV17: - | AW17: - | AX17: -
A18: 19 | B18: 电子考勤 | C18: 秦振文 | H18: =VLOOKUP(C18,企业管理结算!$D:$E,2,0) -> 340 | I18: 0 | T18: - | U18: - | V18: - | W18: - | X18: - | Y18: - | Z18: - | AA18: - | AB18: - | AC18: - | AD18: - | AE18: - | AF18: - | AG18: - | AH18: - | AI18: - | AJ18: - | AK18: - | AL18: - | AM18: - | AN18: - | AO18: - | AP18: - | AQ18: - | AR18: - | AS18: - | AT18: - | AU18: - | AV18: - | AW18: - | AX18: -
A19: 20 | B19: 电子考勤 | C19: 杨艳彬 | H19: =VLOOKUP(C19,企业管理结算!$D:$E,2,0) -> 350 | I19: 0 | T19: - | U19: - | V19: - | W19: - | X19: - | Y19: - | Z19: - | AA19: - | AB19: - | AC19: - | AD19: - | AE19: - | AF19: - | AG19: - | AH19: - | AI19: - | AJ19: - | AK19: - | AL19: - | AM19: - | AN19: - | AO19: - | AP19: - | AQ19: - | AR19: - | AS19: - | AT19: - | AU19: - | AV19: - | AW19: - | AX19: -
A20: 21 | B20: 电子考勤 | C20: 杨胜利 | H20: =VLOOKUP(C20,企业管理结算!$D:$E,2,0) -> 300 | I20: 0 | T20: - | U20: - | V20: - | W20: - | X20: - | Y20: - | Z20: - | AA20: - | AB20: - | AC20: - | AD20: - | AE20: - | AF20: - | AG20: - | AH20: - | AI20: - | AJ20: - | AK20: - | AL20: - | AM20: - | AN20: - | AO20: - | AP20: - | AQ20: - | AR20: - | AS20: - | AT20: - | AU20: - | AV20: - | AW20: - | AX20: -
A21: 22 | B21: 电子考勤 | C21: 李文魁 | H21: =VLOOKUP(C21,企业管理结算!$D:$E,2,0) -> 300 | I21: 0 | T21: - | U21: - | V21: - | W21: - | X21: - | Y21: - | Z21: - | AA21: - | AB21: - | AC21: - | AD21: - | AE21: - | AF21: - | AG21: - | AH21: - | AI21: - | AJ21: - | AK21: - | AL21: - | AM21: - | AN21: - | AO21: - | AP21: - | AQ21: - | AR21: - | AS21: - | AT21: - | AU21: - | AV21: - | AW21: - | AX21: -
A22: 23 | B22: 电子考勤 | C22: 王胜山 | H22: =VLOOKUP(C22,企业管理结算!$D:$E,2,0) -> 300 | I22: 0 | T22: - | U22: - | V22: - | W22: - | X22: - | Y22: - | Z22: - | AA22: - | AB22: - | AC22: - | AD22: - | AE22: - | AF22: - | AG22: - | AH22: - | AI22: - | AJ22: - | AK22: - | AL22: - | AM22: - | AN22: - | AO22: - | AP22: - | AQ22: - | AR22: - | AS22: - | AT22: - | AU22: - | AV22: - | AW22: - | AX22: -
A23: 24 | B23: 电子考勤 | C23: 郝运堂 | H23: =VLOOKUP(C23,企业管理结算!$D:$E,2,0) -> 280 | I23: 0 | T23: - | U23: - | V23: - | W23: - | X23: - | Y23: - | Z23: - | AA23: - | AB23: - | AC23: - | AD23: - | AE23: - | AF23: - | AG23: - | AH23: - | AI23: - | AJ23: - | AK23: - | AL23: - | AM23: - | AN23: - | AO23: - | AP23: - | AQ23: - | AR23: - | AS23: - | AT23: - | AU23: - | AV23: - | AW23: - | AX23: -
A24: 25 | B24: 电子考勤 | C24: 李新贞 | H24: =VLOOKUP(C24,企业管理结算!$D:$E,2,0) -> 250 | I24: 0 | T24: - | U24: - | V24: - | W24: - | X24: - | Y24: - | Z24: - | AA24: - | AB24: - | AC24: - | AD24: - | AE24: - | AF24: - | AG24: - | AH24: - | AI24: - | AJ24: - | AK24: - | AL24: - | AM24: - | AN24: - | AO24: - | AP24: - | AQ24: - | AR24: - | AS24: - | AT24: - | AU24: - | AV24: - | AW24: - | AX24: -
A25: 26 | B25: 电子考勤 | C25: 李旺 | H25: =VLOOKUP(C25,企业管理结算!$D:$E,2,0) -> 250 | I25: 0 | T25: - | U25: - | V25: - | W25: - | X25: - | Y25: - | Z25: - | AA25: - | AB25: - | AC25: - | AD25: - | AE25: - | AF25: - | AG25: - | AH25: - | AI25: - | AJ25: - | AK25: - | AL25: - | AM25: - | AN25: - | AO25: - | AP25: - | AQ25: - | AR25: - | AS25: - | AT25: - | AU25: - | AV25: - | AW25: - | AX25: -
A26: 27 | B26: 电子考勤 | C26: 王新波 | H26: =VLOOKUP(C26,企业管理结算!$D:$E,2,0) -> 260 | I26: 0 | T26: - | U26: - | V26: - | W26: - | X26: - | Y26: - | Z26: - | AA26: - | AB26: - | AC26: - | AD26: - | AE26: - | AF26: - | AG26: - | AH26: - | AI26: - | AJ26: - | AK26: - | AL26: - | AM26: - | AN26: - | AO26: - | AP26: - | AQ26: - | AR26: - | AS26: - | AT26: - | AU26: - | AV26: - | AW26: - | AX26: -
A27: 28 | B27: 电子考勤 | C27: 陈彦锋 | H27: =VLOOKUP(C27,企业管理结算!$D:$E,2,0) -> 260 | I27: 0 | T27: - | U27: - | V27: - | W27: - | X27: - | Y27: - | Z27: - | AA27: - | AB27: - | AC27: - | AD27: - | AE27: - | AF27: - | AG27: - | AH27: - | AI27: - | AJ27: - | AK27: - | AL27: - | AM27: - | AN27: - | AO27: - | AP27: - | AQ27: - | AR27: - | AS27: - | AT27: - | AU27: - | AV27: - | AW27: - | AX27: -
A28: 29 | B28: 电子考勤 | C28: 张仲山 | H28: =VLOOKUP(C28,企业管理结算!$D:$E,2,0) -> 240 | I28: 0 | T28: - | U28: - | V28: - | W28: - | X28: - | Y28: - | Z28: - | AA28: - | AB28: - | AC28: - | AD28: - | AE28: - | AF28: - | AG28: - | AH28: - | AI28: - | AJ28: - | AK28: - | AL28: - | AM28: - | AN28: - | AO28: - | AP28: - | AQ28: - | AR28: - | AS28: - | AT28: - | AU28: - | AV28: - | AW28: - | AX28: -
A29: 30 | B29: 电子考勤 | C29: 郝月桥 | H29: =VLOOKUP(C29,企业管理结算!$D:$E,2,0) -> 300 | I29: 0 | T29: - | U29: - | V29: - | W29: - | X29: - | Y29: - | Z29: - | AA29: - | AB29: - | AC29: - | AD29: - | AE29: - | AF29: - | AG29: - | AH29: - | AI29: - | AJ29: - | AK29: - | AL29: - | AM29: - | AN29: - | AO29: - | AP29: - | AQ29: - | AR29: - | AS29: - | AT29: - | AU29: - | AV29: - | AW29: - | AX29: -
A30: 31 | B30: 电子考勤 | C30: 杨艳彬 | H30: =VLOOKUP(C30,企业管理结算!$D:$E,2,0) -> 350 | I30: 0 | T30: - | U30: - | V30: - | W30: - | X30: - | Y30: - | Z30: - | AA30: - | AB30: - | AC30: - | AD30: - | AE30: - | AF30: - | AG30: - | AH30: - | AI30: - | AJ30: - | AK30: - | AL30: - | AM30: - | AN30: - | AO30: - | AP30: - | AQ30: - | AR30: - | AS30: - | AT30: - | AU30: - | AV30: - | AW30: - | AX30: -
A31: 32 | B31: 电子考勤 | C31: 张仲山 | H31: =VLOOKUP(C31,企业管理结算!$D:$E,2,0) -> 240 | I31: 0 | T31: - | U31: - | V31: - | W31: - | X31: - | Y31: - | Z31: - | AA31: - | AB31: - | AC31: - | AD31: - | AE31: - | AF31: - | AG31: - | AH31: - | AI31: - | AJ31: - | AK31: - | AL31: - | AM31: - | AN31: - | AO31: - | AP31: - | AQ31: - | AR31: - | AS31: - | AT31: - | AU31: - | AV31: - | AW31: - | AX31: -
A32: 33 | B32: 电子考勤 | C32: 郝月桥 | H32: =VLOOKUP(C32,企业管理结算!$D:$E,2,0) -> 300 | I32: 0 | T32: - | U32: - | V32: - | W32: - | X32: - | Y32: - | Z32: - | AA32: - | AB32: - | AC32: - | AD32: - | AE32: - | AF32: - | AG32: - | AH32: - | AI32: - | AJ32: - | AK32: - | AL32: - | AM32: - | AN32: - | AO32: - | AP32: - | AQ32: - | AR32: - | AS32: - | AT32: - | AU32: - | AV32: - | AW32: - | AX32: -
A33: 34 | B33: 电子考勤 | C33: 杨艳彬 | H33: =VLOOKUP(C33,企业管理结算!$D:$E,2,0) -> 350 | I33: 0 | T33: - | U33: - | V33: - | W33: - | X33: - | Y33: - | Z33: - | AA33: - | AB33: - | AC33: - | AD33: - | AE33: - | AF33: - | AG33: - | AH33: - | AI33: - | AJ33: - | AK33: - | AL33: - | AM33: - | AN33: - | AO33: - | AP33: - | AQ33: - | AR33: - | AS33: - | AT33: - | AU33: - | AV33: - | AW33: - | AX33: -
A34: 35 | B34: 电子考勤 | C34: 张仲山 | H34: =VLOOKUP(C34,企业管理结算!$D:$E,2,0) -> 240 | I34: 0 | T34: - | U34: - | V34: - | W34: - | X34: - | Y34: - | Z34: - | AA34: - | AB34: - | AC34: - | AD34: - | AE34: - | AF34: - | AG34: - | AH34: - | AI34: - | AJ34: - | AK34: - | AL34: - | AM34: - | AN34: - | AO34: - | AP34: - | AQ34: - | AR34: - | AS34: - | AT34: - | AU34: - | AV34: - | AW34: - | AX34: -
A35: 36 | B35: 电子考勤 | C35: 王新波 | H35: =VLOOKUP(C35,企业管理结算!$D:$E,2,0) -> 260 | I35: 0 | T35: - | U35: - | V35: - | W35: - | X35: - | Y35: - | Z35: - | AA35: - | AB35: - | AC35: - | AD35: - | AE35: - | AF35: - | AG35: - | AH35: - | AI35: - | AJ35: - | AK35: - | AL35: - | AM35: - | AN35: - | AO35: - | AP35: - | AQ35: - | AR35: - | AS35: - | AT35: - | AU35: - | AV35: - | AW35: - | AX35: -
A36: 37 | B36: 电子考勤 | C36: 陈彦锋 | H36: =VLOOKUP(C36,企业管理结算!$D:$E,2,0) -> 260 | I36: 0 | T36: - | U36: - | V36: - | W36: - | X36: - | Y36: - | Z36: - | AA36: - | AB36: - | AC36: - | AD36: - | AE36: - | AF36: - | AG36: - | AH36: - | AI36: - | AJ36: - | AK36: - | AL36: - | AM36: - | AN36: - | AO36: - | AP36: - | AQ36: - | AR36: - | AS36: - | AT36: - | AU36: - | AV36: - | AW36: - | AX36: -
A37: 38 | B37: 电子考勤 | C37: 李文亮 | H37: =VLOOKUP(C37,企业管理结算!$D:$E,2,0) -> 300 | I37: 0 | T37: - | U37: - | V37: - | W37: - | X37: - | Y37: - | Z37: - | AA37: - | AB37: - | AC37: - | AD37: - | AE37: - | AF37: - | AG37: - | AH37: - | AI37: - | AJ37: - | AK37: - | AL37: - | AM37: - | AN37: - | AO37: - | AP37: - | AQ37: - | AR37: - | AS37: - | AT37: - | AU37: - | AV37: - | AW37: - | AX37: -
A38: 39 | B38: 电子考勤 | C38: 李文庆 | H38: =VLOOKUP(C38,企业管理结算!$D:$E,2,0) -> 290 | I38: 0 | T38: - | U38: - | V38: - | W38: - | X38: - | Y38: - | Z38: - | AA38: - | AB38: - | AC38: - | AD38: - | AE38: - | AF38: - | AG38: - | AH38: - | AI38: - | AJ38: - | AK38: - | AL38: - | AM38: - | AN38: - | AO38: - | AP38: - | AQ38: - | AR38: - | AS38: - | AT38: - | AU38: - | AV38: - | AW38: - | AX38: -
A39: 40 | B39: 电子考勤 | C39: 李文魁 | H39: =VLOOKUP(C39,企业管理结算!$D:$E,2,0) -> 300 | I39: 0 | T39: - | U39: - | V39: - | W39: - | X39: - | Y39: - | Z39: - | AA39: - | AB39: - | AC39: - | AD39: - | AE39: - | AF39: - | AG39: - | AH39: - | AI39: - | AJ39: - | AK39: - | AL39: - | AM39: - | AN39: - | AO39: - | AP39: - | AQ39: - | AR39: - | AS39: - | AT39: - | AU39: - | AV39: - | AW39: - | AX39: -
A40: 41 | B40: 电子考勤 | C40: 李文亮 | H40: =VLOOKUP(C40,企业管理结算!$D:$E,2,0) -> 300 | I40: 0 | T40: - | U40: - | V40: - | W40: - | X40: - | Y40: - | Z40: - | AA40: - | AB40: - | AC40: - | AD40: - | AE40: - | AF40: - | AG40: - | AH40: - | AI40: - | AJ40: - | AK40: - | AL40: - | AM40: - | AN40: - | AO40: - | AP40: - | AQ40: - | AR40: - | AS40: - | AT40: - | AU40: - | AV40: - | AW40: - | AX40: -
A41: 42 | B41: 电子考勤 | C41: 李文魁 | H41: =VLOOKUP(C41,企业管理结算!$D:$E,2,0) -> 300 | I41: 0 | T41: - | U41: - | V41: - | W41: - | X41: - | Y41: - | Z41: - | AA41: - | AB41: - | AC41: - | AD41: - | AE41: - | AF41: - | AG41: - | AH41: - | AI41: - | AJ41: - | AK41: - | AL41: - | AM41: - | AN41: - | AO41: - | AP41: - | AQ41: - | AR41: - | AS41: - | AT41: - | AU41: - | AV41: - | AW41: - | AX41: -
A42: 43 | B42: 电子考勤 | C42: 郝运堂 | H42: =VLOOKUP(C42,企业管理结算!$D:$E,2,0) -> 280 | I42: 0 | T42: - | U42: - | V42: - | W42: - | X42: - | Y42: - | Z42: - | AA42: - | AB42: - | AC42: - | AD42: - | AE42: - | AF42: - | AG42: - | AH42: - | AI42: - | AJ42: - | AK42: - | AL42: - | AM42: - | AN42: - | AO42: - | AP42: - | AQ42: - | AR42: - | AS42: - | AT42: - | AU42: - | AV42: - | AW42: - | AX42: -
A43: 44 | B43: 电子考勤 | C43: 李新贞 | H43: =VLOOKUP(C43,企业管理结算!$D:$E,2,0) -> 250 | I43: 0 | T43: - | U43: - | V43: - | W43: - | X43: - | Y43: - | Z43: - | AA43: - | AB43: - | AC43: - | AD43: - | AE43: - | AF43: - | AG43: - | AH43: - | AI43: - | AJ43: - | AK43: - | AL43: - | AM43: - | AN43: - | AO43: - | AP43: - | AQ43: - | AR43: - | AS43: - | AT43: - | AU43: - | AV43: - | AW43: - | AX43: -
A44: 45 | B44: 电子考勤 | C44: 王胜山 | H44: =VLOOKUP(C44,企业管理结算!$D:$E,2,0) -> 300 | I44: 0 | T44: - | U44: - | V44: - | W44: - | X44: - | Y44: - | Z44: - | AA44: - | AB44: - | AC44: - | AD44: - | AE44: - | AF44: - | AG44: - | AH44: - | AI44: - | AJ44: - | AK44: - | AL44: - | AM44: - | AN44: - | AO44: - | AP44: - | AQ44: - | AR44: - | AS44: - | AT44: - | AU44: - | AV44: - | AW44: - | AX44: -
A45: 46 | B45: 电子考勤 | C45: 李旺 | H45: =VLOOKUP(C45,企业管理结算!$D:$E,2,0) -> 250 | I45: 0 | T45: - | U45: - | V45: - | W45: - | X45: - | Y45: - | Z45: - | AA45: - | AB45: - | AC45: - | AD45: - | AE45: - | AF45: - | AG45: - | AH45: - | AI45: - | AJ45: - | AK45: - | AL45: - | AM45: - | AN45: - | AO45: - | AP45: - | AQ45: - | AR45: - | AS45: - | AT45: - | AU45: - | AV45: - | AW45: - | AX45: -
A46: 47 | B46: 电子考勤 | C46: 杨胜利 | H46: =VLOOKUP(C46,企业管理结算!$D:$E,2,0) -> 300 | I46: 0 | T46: - | U46: - | V46: - | W46: - | X46: - | Y46: - | Z46: - | AA46: - | AB46: - | AC46: - | AD46: - | AE46: - | AF46: - | AG46: - | AH46: - | AI46: - | AJ46: - | AK46: - | AL46: - | AM46: - | AN46: - | AO46: - | AP46: - | AQ46: - | AR46: - | AS46: - | AT46: - | AU46: - | AV46: - | AW46: - | AX46: -
A47: 48 | B47: 电子考勤 | C47: 王新波 | H47: =VLOOKUP(C47,企业管理结算!$D:$E,2,0) -> 260 | I47: 0 | T47: - | U47: - | V47: - | W47: - | X47: - | Y47: - | Z47: - | AA47: - | AB47: - | AC47: - | AD47: - | AE47: - | AF47: - | AG47: - | AH47: - | AI47: - | AJ47: - | AK47: - | AL47: - | AM47: - | AN47: - | AO47: - | AP47: - | AQ47: - | AR47: - | AS47: - | AT47: - | AU47: - | AV47: - | AW47: - | AX47: -
A48: 49 | B48: 电子考勤 | C48: 陈彦锋 | H48: =VLOOKUP(C48,企业管理结算!$D:$E,2,0) -> 260 | I48: 0 | T48: - | U48: - | V48: - | W48: - | X48: - | Y48: - | Z48: - | AA48: - | AB48: - | AC48: - | AD48: - | AE48: - | AF48: - | AG48: - | AH48: - | AI48: - | AJ48: - | AK48: - | AL48: - | AM48: - | AN48: - | AO48: - | AP48: - | AQ48: - | AR48: - | AS48: - | AT48: - | AU48: - | AV48: - | AW48: - | AX48: -
A49: 50 | B49: 电子考勤 | C49: 李文庆 | H49: =VLOOKUP(C49,企业管理结算!$D:$E,2,0) -> 290 | I49: 0 | T49: - | U49: - | V49: - | W49: - | X49: - | Y49: - | Z49: - | AA49: - | AB49: - | AC49: - | AD49: - | AE49: - | AF49: - | AG49: - | AH49: - | AI49: - | AJ49: - | AK49: - | AL49: - | AM49: - | AN49: - | AO49: - | AP49: - | AQ49: - | AR49: - | AS49: - | AT49: - | AU49: - | AV49: - | AW49: - | AX49: -
A50: 51 | B50: 电子考勤 | C50: 杨艳彬 | H50: =VLOOKUP(C50,企业管理结算!$D:$E,2,0) -> 350 | I50: 0 | T50: - | U50: - | V50: - | W50: - | X50: - | Y50: - | Z50: - | AA50: - | AB50: - | AC50: - | AD50: - | AE50: - | AF50: - | AG50: - | AH50: - | AI50: - | AJ50: - | AK50: - | AL50: - | AM50: - | AN50: - | AO50: - | AP50: - | AQ50: - | AR50: - | AS50: - | AT50: - | AU50: - | AV50: - | AW50: - | AX50: -
A51: 52 | B51: 电子考勤 | C51: 张仲山 | H51: =VLOOKUP(C51,企业管理结算!$D:$E,2,0) -> 240 | I51: 0 | T51: - | U51: - | V51: - | W51: - | X51: - | Y51: - | Z51: - | AA51: - | AB51: - | AC51: - | AD51: - | AE51: - | AF51: - | AG51: - | AH51: - | AI51: - | AJ51: - | AK51: - | AL51: - | AM51: - | AN51: - | AO51: - | AP51: - | AQ51: - | AR51: - | AS51: - | AT51: - | AU51: - | AV51: - | AW51: - | AX51: -
A52: 53 | B52: 电子考勤 | C52: 秦振文 | H52: =VLOOKUP(C52,企业管理结算!$D:$E,2,0) -> 340 | I52: 0 | T52: - | U52: - | V52: - | W52: - | X52: - | Y52: - | Z52: - | AA52: - | AB52: - | AC52: - | AD52: - | AE52: - | AF52: - | AG52: - | AH52: - | AI52: - | AJ52: - | AK52: - | AL52: - | AM52: - | AN52: - | AO52: - | AP52: - | AQ52: - | AR52: - | AS52: - | AT52: - | AU52: - | AV52: - | AW52: - | AX52: -
A53: 54 | B53: 电子考勤 | C53: 尹书臣 | H53: =VLOOKUP(C53,企业管理结算!$D:$E,2,0) -> 260 | I53: 0 | T53: - | U53: - | V53: - | W53: - | X53: - | Y53: - | Z53: - | AA53: - | AB53: - | AC53: - | AD53: - | AE53: - | AF53: - | AG53: - | AH53: - | AI53: - | AJ53: - | AK53: - | AL53: - | AM53: - | AN53: - | AO53: - | AP53: - | AQ53: - | AR53: - | AS53: - | AT53: - | AU53: - | AV53: - | AW53: - | AX53: -
A54: 55 | B54: 电子考勤 | C54: 程彦彬 | H54: =VLOOKUP(C54,企业管理结算!$D:$E,2,0) -> 250 | I54: 0 | T54: - | U54: - | V54: - | W54: - | X54: - | Y54: - | Z54: - | AA54: - | AB54: - | AC54: - | AD54: - | AE54: - | AF54: - | AG54: - | AH54: - | AI54: - | AJ54: - | AK54: - | AL54: - | AM54: - | AN54: - | AO54: - | AP54: - | AQ54: - | AR54: - | AS54: - | AT54: - | AU54: - | AV54: - | AW54: - | AX54: -
A55: 56 | B55: 电子考勤 | C55: 程保军 | H55: =VLOOKUP(C55,企业管理结算!$D:$E,2,0) -> 240 | I55: 0 | T55: - | U55: - | V55: - | W55: - | X55: - | Y55: - | Z55: - | AA55: - | AB55: - | AC55: - | AD55: - | AE55: - | AF55: - | AG55: - | AH55: - | AI55: - | AJ55: - | AK55: - | AL55: - | AM55: - | AN55: - | AO55: - | AP55: - | AQ55: - | AR55: - | AS55: - | AT55: - | AU55: - | AV55: - | AW55: - | AX55: -
A56: 57 | B56: 电子考勤 | C56: 李桂丽 | H56: =VLOOKUP(C56,企业管理结算!$D:$E,2,0) -> 160 | I56: 0 | T56: - | U56: - | V56: - | W56: - | X56: - | Y56: - | Z56: - | AA56: - | AB56: - | AC56: - | AD56: - | AE56: - | AF56: - | AG56: - | AH56: - | AI56: - | AJ56: - | AK56: - | AL56: - | AM56: - | AN56: - | AO56: - | AP56: - | AQ56: - | AR56: - | AS56: - | AT56: - | AU56: - | AV56: - | AW56: - | AX56: -
A57: 58 | B57: 电子考勤 | C57: 郝月桥 | H57: =VLOOKUP(C57,企业管理结算!$D:$E,2,0) -> 300 | I57: 0 | T57: - | U57: - | V57: - | W57: - | X57: - | Y57: - | Z57: - | AA57: - | AB57: - | AC57: - | AD57: - | AE57: - | AF57: - | AG57: - | AH57: - | AI57: - | AJ57: - | AK57: - | AL57: - | AM57: - | AN57: - | AO57: - | AP57: - | AQ57: - | AR57: - | AS57: - | AT57: - | AU57: - | AV57: - | AW57: - | AX57: -
A58: 59 | B58: 电子考勤 | C58: 杨艳彬 | H58: =VLOOKUP(C58,企业管理结算!$D:$E,2,0) -> 350 | I58: 0 | T58: - | U58: - | V58: - | W58: - | X58: - | Y58: - | Z58: - | AA58: - | AB58: - | AC58: - | AD58: - | AE58: - | AF58: - | AG58: - | AH58: - | AI58: - | AJ58: - | AK58: - | AL58: - | AM58: - | AN58: - | AO58: - | AP58: - | AQ58: - | AR58: - | AS58: - | AT58: - | AU58: - | AV58: - | AW58: - | AX58: -
A59: 60 | B59: 电子考勤 | C59: 张仲山 | H59: =VLOOKUP(C59,企业管理结算!$D:$E,2,0) -> 240 | I59: 0 | T59: - | U59: - | V59: - | W59: - | X59: - | Y59: - | Z59: - | AA59: - | AB59: - | AC59: - | AD59: - | AE59: - | AF59: - | AG59: - | AH59: - | AI59: - | AJ59: - | AK59: - | AL59: - | AM59: - | AN59: - | AO59: - | AP59: - | AQ59: - | AR59: - | AS59: - | AT59: - | AU59: - | AV59: - | AW59: - | AX59: -
A60: 61 | B60: 电子考勤 | C60: 郝月桥 | H60: =VLOOKUP(C60,企业管理结算!$D:$E,2,0) -> 300 | I60: 0 | T60: - | U60: - | V60: - | W60: - | X60: - | Y60: - | Z60: - | AA60: - | AB60: - | AC60: - | AD60: - | AE60: - | AF60: - | AG60: - | AH60: - | AI60: - | AJ60: - | AK60: - | AL60: - | AM60: - | AN60: - | AO60: - | AP60: - | AQ60: - | AR60: - | AS60: - | AT60: - | AU60: - | AV60: - | AW60: - | AX60: -
A61: 62 | B61: 电子考勤 | C61: 李文亮 | H61: =VLOOKUP(C61,企业管理结算!$D:$E,2,0) -> 300 | I61: 0 | T61: - | U61: - | V61: - | W61: - | X61: - | Y61: - | Z61: - | AA61: - | AB61: - | AC61: - | AD61: - | AE61: - | AF61: - | AG61: - | AH61: - | AI61: - | AJ61: - | AK61: - | AL61: - | AM61: - | AN61: - | AO61: - | AP61: - | AQ61: - | AR61: - | AS61: - | AT61: - | AU61: - | AV61: - | AW61: - | AX61: -
A62: 63 | B62: 电子考勤 | C62: 李文庆 | H62: =VLOOKUP(C62,企业管理结算!$D:$E,2,0) -> 290 | I62: 0 | T62: - | U62: - | V62: - | W62: - | X62: - | Y62: - | Z62: - | AA62: - | AB62: - | AC62: - | AD62: - | AE62: - | AF62: - | AG62: - | AH62: - | AI62: - | AJ62: - | AK62: - | AL62: - | AM62: - | AN62: - | AO62: - | AP62: - | AQ62: - | AR62: - | AS62: - | AT62: - | AU62: - | AV62: - | AW62: - | AX62: -
A63: 64 | B63: 电子考勤 | C63: 李文魁 | H63: =VLOOKUP(C63,企业管理结算!$D:$E,2,0) -> 300 | I63: 0 | T63: - | U63: - | V63: - | W63: - | X63: - | Y63: - | Z63: - | AA63: - | AB63: - | AC63: - | AD63: - | AE63: - | AF63: - | AG63: - | AH63: - | AI63: - | AJ63: - | AK63: - | AL63: - | AM63: - | AN63: - | AO63: - | AP63: - | AQ63: - | AR63: - | AS63: - | AT63: - | AU63: - | AV63: - | AW63: - | AX63: -
A64: 65 | B64: 电子考勤 | C64: 杨艳彬 | H64: =VLOOKUP(C64,企业管理结算!$D:$E,2,0) -> 350 | I64: =H64*Q64 -> 0 | T64: - | U64: - | V64: - | W64: - | X64: - | Y64: - | Z64: - | AA64: - | AB64: - | AC64: - | AD64: - | AE64: - | AF64: - | AG64: - | AH64: - | AI64: - | AJ64: - | AK64: - | AL64: - | AM64: - | AN64: - | AO64: - | AP64: - | AQ64: - | AR64: - | AS64: - | AT64: - | AU64: - | AV64: - | AW64: - | AX64: -
A65: 66 | B65: 电子考勤 | C65: 张仲山 | H65: =VLOOKUP(C65,企业管理结算!$D:$E,2,0) -> 240 | I65: 0 | T65: - | U65: - | V65: - | W65: - | X65: - | Y65: - | Z65: - | AA65: - | AB65: - | AC65: - | AD65: - | AE65: - | AF65: - | AG65: - | AH65: - | AI65: - | AJ65: - | AK65: - | AL65: - | AM65: - | AN65: - | AO65: - | AP65: - | AQ65: - | AR65: - | AS65: - | AT65: - | AU65: - | AV65: - | AW65: - | AX65: -
A66: 67 | B66: 电子考勤 | C66: 尹书臣 | H66: =VLOOKUP(C66,企业管理结算!$D:$E,2,0) -> 260 | I66: 0 | T66: - | U66: - | V66: - | W66: - | X66: - | Y66: - | Z66: - | AA66: - | AB66: - | AC66: - | AD66: - | AE66: - | AF66: - | AG66: - | AH66: - | AI66: - | AJ66: - | AK66: - | AL66: - | AM66: - | AN66: - | AO66: - | AP66: - | AQ66: - | AR66: - | AS66: - | AT66: - | AU66: - | AV66: - | AW66: - | AX66: -
A67: 68 | B67: 电子考勤 | C67: 秦振文 | H67: =VLOOKUP(C67,企业管理结算!$D:$E,2,0) -> 340 | I67: 0 | T67: - | U67: - | V67: - | W67: - | X67: - | Y67: - | Z67: - | AA67: - | AB67: - | AC67: - | AD67: - | AE67: - | AF67: - | AG67: - | AH67: - | AI67: - | AJ67: - | AK67: - | AL67: - | AM67: - | AN67: - | AO67: - | AP67: - | AQ67: - | AR67: - | AS67: - | AT67: - | AU67: - | AV67: - | AW67: - | AX67: -
A68: 69 | B68: 电子考勤 | C68: 郝运堂 | H68: =VLOOKUP(C68,企业管理结算!$D:$E,2,0) -> 280 | I68: 0 | T68: - | U68: - | V68: - | W68: - | X68: - | Y68: - | Z68: - | AA68: - | AB68: - | AC68: - | AD68: - | AE68: - | AF68: - | AG68: - | AH68: - | AI68: - | AJ68: - | AK68: - | AL68: - | AM68: - | AN68: - | AO68: - | AP68: - | AQ68: - | AR68: - | AS68: - | AT68: - | AU68: - | AV68: - | AW68: - | AX68: -
A69: 70 | B69: 电子考勤 | C69: 王胜山 | H69: =VLOOKUP(C69,企业管理结算!$D:$E,2,0) -> 300 | I69: 0 | T69: - | U69: - | V69: - | W69: - | X69: - | Y69: - | Z69: - | AA69: - | AB69: - | AC69: - | AD69: - | AE69: - | AF69: - | AG69: - | AH69: - | AI69: - | AJ69: - | AK69: - | AL69: - | AM69: - | AN69: - | AO69: - | AP69: - | AQ69: - | AR69: - | AS69: - | AT69: - | AU69: - | AV69: - | AW69: - | AX69: -
A70: 71 | B70: 电子考勤 | C70: 程彦彬 | H70: =VLOOKUP(C70,企业管理结算!$D:$E,2,0) -> 250 | I70: 0 | T70: - | U70: - | V70: - | W70: - | X70: - | Y70: - | Z70: - | AA70: - | AB70: - | AC70: - | AD70: - | AE70: - | AF70: - | AG70: - | AH70: - | AI70: - | AJ70: - | AK70: - | AL70: - | AM70: - | AN70: - | AO70: - | AP70: - | AQ70: - | AR70: - | AS70: - | AT70: - | AU70: - | AV70: - | AW70: - | AX70: -
A71: 72 | B71: 电子考勤 | C71: 杨胜利 | H71: =VLOOKUP(C71,企业管理结算!$D:$E,2,0) -> 300 | I71: 0 | T71: - | U71: - | V71: - | W71: - | X71: - | Y71: - | Z71: - | AA71: - | AB71: - | AC71: - | AD71: - | AE71: - | AF71: - | AG71: - | AH71: - | AI71: - | AJ71: - | AK71: - | AL71: - | AM71: - | AN71: - | AO71: - | AP71: - | AQ71: - | AR71: - | AS71: - | AT71: - | AU71: - | AV71: - | AW71: - | AX71: -
A72: 73 | B72: 电子考勤 | C72: 程保军 | H72: =VLOOKUP(C72,企业管理结算!$D:$E,2,0) -> 240 | I72: 0 | T72: - | U72: - | V72: - | W72: - | X72: - | Y72: - | Z72: - | AA72: - | AB72: - | AC72: - | AD72: - | AE72: - | AF72: - | AG72: - | AH72: - | AI72: - | AJ72: - | AK72: - | AL72: - | AM72: - | AN72: - | AO72: - | AP72: - | AQ72: - | AR72: - | AS72: - | AT72: - | AU72: - | AV72: - | AW72: - | AX72: -
A73: 74 | B73: 电子考勤 | C73: 李桂丽 | H73: =VLOOKUP(C73,企业管理结算!$D:$E,2,0) -> 160 | I73: 0 | T73: - | U73: - | V73: - | W73: - | X73: - | Y73: - | Z73: - | AA73: - | AB73: - | AC73: - | AD73: - | AE73: - | AF73: - | AG73: - | AH73: - | AI73: - | AJ73: - | AK73: - | AL73: - | AM73: - | AN73: - | AO73: - | AP73: - | AQ73: - | AR73: - | AS73: - | AT73: - | AU73: - | AV73: - | AW73: - | AX73: -
A74: 75 | B74: 电子考勤 | C74: 王新波 | H74: =VLOOKUP(C74,企业管理结算!$D:$E,2,0) -> 260 | I74: 0 | T74: - | U74: - | V74: - | W74: - | X74: - | Y74: - | Z74: - | AA74: - | AB74: - | AC74: - | AD74: - | AE74: - | AF74: - | AG74: - | AH74: - | AI74: - | AJ74: - | AK74: - | AL74: - | AM74: - | AN74: - | AO74: - | AP74: - | AQ74: - | AR74: - | AS74: - | AT74: - | AU74: - | AV74: - | AW74: - | AX74: -
A75: 76 | B75: 电子考勤 | C75: 陈彦锋 | H75: =VLOOKUP(C75,企业管理结算!$D:$E,2,0) -> 260 | I75: 0 | T75: - | U75: - | V75: - | W75: - | X75: - | Y75: - | Z75: - | AA75: - | AB75: - | AC75: - | AD75: - | AE75: - | AF75: - | AG75: - | AH75: - | AI75: - | AJ75: - | AK75: - | AL75: - | AM75: - | AN75: - | AO75: - | AP75: - | AQ75: - | AR75: - | AS75: - | AT75: - | AU75: - | AV75: - | AW75: - | AX75: -
A76: 77 | B76: 电子考勤 | C76: 张仲山 | H76: =VLOOKUP(C76,企业管理结算!$D:$E,2,0) -> 240 | I76: 0 | T76: - | U76: - | V76: - | W76: - | X76: - | Y76: - | Z76: - | AA76: - | AB76: - | AC76: - | AD76: - | AE76: - | AF76: - | AG76: - | AH76: - | AI76: - | AJ76: - | AK76: - | AL76: - | AM76: - | AN76: - | AO76: - | AP76: - | AQ76: - | AR76: - | AS76: - | AT76: - | AU76: - | AV76: - | AW76: - | AX76: -
A77: 78 | B77: 电子考勤 | C77: 付万亭 | H77: =VLOOKUP(C77,企业管理结算!$D:$E,2,0) -> 270 | I77: 0 | T77: - | U77: - | V77: - | W77: - | X77: - | Y77: - | Z77: - | AA77: - | AB77: - | AC77: - | AD77: - | AE77: - | AF77: - | AG77: - | AH77: - | AI77: - | AJ77: - | AK77: - | AL77: - | AM77: - | AN77: - | AO77: - | AP77: - | AQ77: - | AR77: - | AS77: - | AT77: - | AU77: - | AV77: - | AW77: - | AX77: -
A78: 79 | B78: 电子考勤 | C78: 王红福 | H78: =VLOOKUP(C78,企业管理结算!$D:$E,2,0) -> 285 | I78: 0 | T78: - | U78: - | V78: - | W78: - | X78: - | Y78: - | Z78: - | AA78: - | AB78: - | AC78: - | AD78: - | AE78: - | AF78: - | AG78: - | AH78: - | AI78: - | AJ78: - | AK78: - | AL78: - | AM78: - | AN78: - | AO78: - | AP78: - | AQ78: - | AR78: - | AS78: - | AT78: - | AU78: - | AV78: - | AW78: - | AX78: -
A79: 80 | B79: 电子考勤 | C79: 郝月桥 | H79: =VLOOKUP(C79,企业管理结算!$D:$E,2,0) -> 300 | I79: 0 | T79: - | U79: - | V79: - | W79: - | X79: - | Y79: - | Z79: - | AA79: - | AB79: - | AC79: - | AD79: - | AE79: - | AF79: - | AG79: - | AH79: - | AI79: - | AJ79: - | AK79: - | AL79: - | AM79: - | AN79: - | AO79: - | AP79: - | AQ79: - | AR79: - | AS79: - | AT79: - | AU79: - | AV79: - | AW79: - | AX79: -
A80: 81 | B80: 电子考勤 | C80: 李文亮 | H80: =VLOOKUP(C80,企业管理结算!$D:$E,2,0) -> 300 | I80: 0 | T80: - | U80: - | V80: - | W80: - | X80: - | Y80: - | Z80: - | AA80: - | AB80: - | AC80: - | AD80: - | AE80: - | AF80: - | AG80: - | AH80: - | AI80: - | AJ80: - | AK80: - | AL80: - | AM80: - | AN80: - | AO80: - | AP80: - | AQ80: - | AR80: - | AS80: - | AT80: - | AU80: - | AV80: - | AW80: - | AX80: -
A81: 82 | B81: 电子考勤 | C81: 李文庆 | H81: =VLOOKUP(C81,企业管理结算!$D:$E,2,0) -> 290 | I81: 0 | T81: - | U81: - | V81: - | W81: - | X81: - | Y81: - | Z81: - | AA81: - | AB81: - | AC81: - | AD81: - | AE81: - | AF81: - | AG81: - | AH81: - | AI81: - | AJ81: - | AK81: - | AL81: - | AM81: - | AN81: - | AO81: - | AP81: - | AQ81: - | AR81: - | AS81: - | AT81: - | AU81: - | AV81: - | AW81: - | AX81: -
A82: 83 | B82: 电子考勤 | C82: 李文魁 | H82: =VLOOKUP(C82,企业管理结算!$D:$E,2,0) -> 300 | I82: 0 | T82: - | U82: - | V82: - | W82: - | X82: - | Y82: - | Z82: - | AA82: - | AB82: - | AC82: - | AD82: - | AE82: - | AF82: - | AG82: - | AH82: - | AI82: - | AJ82: - | AK82: - | AL82: - | AM82: - | AN82: - | AO82: - | AP82: - | AQ82: - | AR82: - | AS82: - | AT82: - | AU82: - | AV82: - | AW82: - | AX82: -
A83: 84 | B83: 电子考勤 | C83: 杨艳彬 | H83: =VLOOKUP(C83,企业管理结算!$D:$E,2,0) -> 350 | I83: 0 | T83: - | U83: - | V83: - | W83: - | X83: - | Y83: - | Z83: - | AA83: - | AB83: - | AC83: - | AD83: - | AE83: - | AF83: - | AG83: - | AH83: - | AI83: - | AJ83: - | AK83: - | AL83: - | AM83: - | AN83: - | AO83: - | AP83: - | AQ83: - | AR83: - | AS83: - | AT83: - | AU83: - | AV83: - | AW83: - | AX83: -
A84: 85 | B84: 电子考勤 | C84: 张仲山 | H84: =VLOOKUP(C84,企业管理结算!$D:$E,2,0) -> 240 | I84: 0 | T84: - | U84: - | V84: - | W84: - | X84: - | Y84: - | Z84: - | AA84: - | AB84: - | AC84: - | AD84: - | AE84: - | AF84: - | AG84: - | AH84: - | AI84: - | AJ84: - | AK84: - | AL84: - | AM84: - | AN84: - | AO84: - | AP84: - | AQ84: - | AR84: - | AS84: - | AT84: - | AU84: - | AV84: - | AW84: - | AX84: -
A85: 86 | B85: 电子考勤 | C85: 王红福 | H85: =VLOOKUP(C85,企业管理结算!$D:$E,2,0) -> 285 | I85: 0 | T85: - | U85: - | V85: - | W85: - | X85: - | Y85: - | Z85: - | AA85: - | AB85: - | AC85: - | AD85: - | AE85: - | AF85: - | AG85: - | AH85: - | AI85: - | AJ85: - | AK85: - | AL85: - | AM85: - | AN85: - | AO85: - | AP85: - | AQ85: - | AR85: - | AS85: - | AT85: - | AU85: - | AV85: - | AW85: - | AX85: -
A86: 87 | B86: 电子考勤 | C86: 尹书臣 | H86: =VLOOKUP(C86,企业管理结算!$D:$E,2,0) -> 260 | I86: 0 | T86: - | U86: - | V86: - | W86: - | X86: - | Y86: - | Z86: - | AA86: - | AB86: - | AC86: - | AD86: - | AE86: - | AF86: - | AG86: - | AH86: - | AI86: - | AJ86: - | AK86: - | AL86: - | AM86: - | AN86: - | AO86: - | AP86: - | AQ86: - | AR86: - | AS86: - | AT86: - | AU86: - | AV86: - | AW86: - | AX86: -
A87: 88 | B87: 电子考勤 | C87: 秦振文 | H87: =VLOOKUP(C87,企业管理结算!$D:$E,2,0) -> 340 | I87: 0 | T87: - | U87: - | V87: - | W87: - | X87: - | Y87: - | Z87: - | AA87: - | AB87: - | AC87: - | AD87: - | AE87: - | AF87: - | AG87: - | AH87: - | AI87: - | AJ87: - | AK87: - | AL87: - | AM87: - | AN87: - | AO87: - | AP87: - | AQ87: - | AR87: - | AS87: - | AT87: - | AU87: - | AV87: - | AW87: - | AX87: -
A88: 89 | B88: 电子考勤 | C88: 郝运堂 | H88: =VLOOKUP(C88,企业管理结算!$D:$E,2,0) -> 280 | I88: 0 | T88: - | U88: - | V88: - | W88: - | X88: - | Y88: - | Z88: - | AA88: - | AB88: - | AC88: - | AD88: - | AE88: - | AF88: - | AG88: - | AH88: - | AI88: - | AJ88: - | AK88: - | AL88: - | AM88: - | AN88: - | AO88: - | AP88: - | AQ88: - | AR88: - | AS88: - | AT88: - | AU88: - | AV88: - | AW88: - | AX88: -
A89: 90 | B89: 电子考勤 | C89: 王胜山 | H89: =VLOOKUP(C89,企业管理结算!$D:$E,2,0) -> 300 | I89: 0 | T89: - | U89: - | V89: - | W89: - | X89: - | Y89: - | Z89: - | AA89: - | AB89: - | AC89: - | AD89: - | AE89: - | AF89: - | AG89: - | AH89: - | AI89: - | AJ89: - | AK89: - | AL89: - | AM89: - | AN89: - | AO89: - | AP89: - | AQ89: - | AR89: - | AS89: - | AT89: - | AU89: - | AV89: - | AW89: - | AX89: -
A90: 91 | B90: 电子考勤 | C90: 杨胜利 | H90: =VLOOKUP(C90,企业管理结算!$D:$E,2,0) -> 300 | I90: 0 | T90: - | U90: - | V90: - | W90: - | X90: - | Y90: - | Z90: - | AA90: - | AB90: - | AC90: - | AD90: - | AE90: - | AF90: - | AG90: - | AH90: - | AI90: - | AJ90: - | AK90: - | AL90: - | AM90: - | AN90: - | AO90: - | AP90: - | AQ90: - | AR90: - | AS90: - | AT90: - | AU90: - | AV90: - | AW90: - | AX90: -
A91: 92 | B91: 电子考勤 | C91: 程保军 | H91: =VLOOKUP(C91,企业管理结算!$D:$E,2,0) -> 240 | I91: 0 | T91: - | U91: - | V91: - | W91: - | X91: - | Y91: - | Z91: - | AA91: - | AB91: - | AC91: - | AD91: - | AE91: - | AF91: - | AG91: - | AH91: - | AI91: - | AJ91: - | AK91: - | AL91: - | AM91: - | AN91: - | AO91: - | AP91: - | AQ91: - | AR91: - | AS91: - | AT91: - | AU91: - | AV91: - | AW91: - | AX91: -
A92: 93 | B92: 电子考勤 | C92: 付万亭 | H92: =VLOOKUP(C92,企业管理结算!$D:$E,2,0) -> 270 | I92: 0 | T92: - | U92: - | V92: - | W92: - | X92: - | Y92: - | Z92: - | AA92: - | AB92: - | AC92: - | AD92: - | AE92: - | AF92: - | AG92: - | AH92: - | AI92: - | AJ92: - | AK92: - | AL92: - | AM92: - | AN92: - | AO92: - | AP92: - | AQ92: - | AR92: - | AS92: - | AT92: - | AU92: - | AV92: - | AW92: - | AX92: -
A93: 94 | B93: 电子考勤 | C93: 李桂丽 | H93: =VLOOKUP(C93,企业管理结算!$D:$E,2,0) -> 160 | I93: 0 | T93: - | U93: - | V93: - | W93: - | X93: - | Y93: - | Z93: - | AA93: - | AB93: - | AC93: - | AD93: - | AE93: - | AF93: - | AG93: - | AH93: - | AI93: - | AJ93: - | AK93: - | AL93: - | AM93: - | AN93: - | AO93: - | AP93: - | AQ93: - | AR93: - | AS93: - | AT93: - | AU93: - | AV93: - | AW93: - | AX93: -
A94: 95 | B94: 电子考勤 | C94: 张仲山 | H94: =VLOOKUP(C94,企业管理结算!$D:$E,2,0) -> 240 | I94: 0 | T94: - | U94: - | V94: - | W94: - | X94: - | Y94: - | Z94: - | AA94: - | AB94: - | AC94: - | AD94: - | AE94: - | AF94: - | AG94: - | AH94: - | AI94: - | AJ94: - | AK94: - | AL94: - | AM94: - | AN94: - | AO94: - | AP94: - | AQ94: - | AR94: - | AS94: - | AT94: - | AU94: - | AV94: - | AW94: - | AX94: -
A95: 96 | B95: 电子考勤 | C95: 杨艳彬 | H95: =VLOOKUP(C95,企业管理结算!$D:$E,2,0) -> 350 | I95: 0 | T95: - | U95: - | V95: - | W95: - | X95: - | Y95: - | Z95: - | AA95: - | AB95: - | AC95: - | AD95: - | AE95: - | AF95: - | AG95: - | AH95: - | AI95: - | AJ95: - | AK95: - | AL95: - | AM95: - | AN95: - | AO95: - | AP95: - | AQ95: - | AR95: - | AS95: - | AT95: - | AU95: - | AV95: - | AW95: - | AX95: -
A96: 97 | B96: 电子考勤 | C96: 郝月桥 | H96: =VLOOKUP(C96,企业管理结算!$D:$E,2,0) -> 300 | I96: 0 | T96: - | U96: - | V96: - | W96: - | X96: - | Y96: - | Z96: - | AA96: - | AB96: - | AC96: - | AD96: - | AE96: - | AF96: - | AG96: - | AH96: - | AI96: - | AJ96: - | AK96: - | AL96: - | AM96: - | AN96: - | AO96: - | AP96: - | AQ96: - | AR96: - | AS96: - | AT96: - | AU96: - | AV96: - | AW96: - | AX96: -
A97: 98 | B97: 电子考勤 | C97: 李文亮 | H97: =VLOOKUP(C97,企业管理结算!$D:$E,2,0) -> 300 | I97: 0 | T97: - | U97: - | V97: - | W97: - | X97: - | Y97: - | Z97: - | AA97: - | AB97: - | AC97: - | AD97: - | AE97: - | AF97: - | AG97: - | AH97: - | AI97: - | AJ97: - | AK97: - | AL97: - | AM97: - | AN97: - | AO97: - | AP97: - | AQ97: - | AR97: - | AS97: - | AT97: - | AU97: - | AV97: - | AW97: - | AX97: -
A98: 99 | B98: 电子考勤 | C98: 李文魁 | H98: =VLOOKUP(C98,企业管理结算!$D:$E,2,0) -> 300 | I98: 0 | T98: - | U98: - | V98: - | W98: - | X98: - | Y98: - | Z98: - | AA98: - | AB98: - | AC98: - | AD98: - | AE98: - | AF98: - | AG98: - | AH98: - | AI98: - | AJ98: - | AK98: - | AL98: - | AM98: - | AN98: - | AO98: - | AP98: - | AQ98: - | AR98: - | AS98: - | AT98: - | AU98: - | AV98: - | AW98: - | AX98: -
A99: 100 | B99: 电子考勤 | C99: 王红福 | H99: =VLOOKUP(C99,企业管理结算!$D:$E,2,0) -> 285 | I99: 0 | T99: - | U99: - | V99: - | W99: - | X99: - | Y99: - | Z99: - | AA99: - | AB99: - | AC99: - | AD99: - | AE99: - | AF99: - | AG99: - | AH99: - | AI99: - | AJ99: - | AK99: - | AL99: - | AM99: - | AN99: - | AO99: - | AP99: - | AQ99: - | AR99: - | AS99: - | AT99: - | AU99: - | AV99: - | AW99: - | AX99: -
A100: 101 | B100: 电子考勤 | C100: 秦振文 | H100: =VLOOKUP(C100,企业管理结算!$D:$E,2,0) -> 340 | I100: 0 | T100: - | U100: - | V100: - | W100: - | X100: - | Y100: - | Z100: - | AA100: - | AB100: - | AC100: - | AD100: - | AE100: - | AF100: - | AG100: - | AH100: - | AI100: - | AJ100: - | AK100: - | AL100: - | AM100: - | AN100: - | AO100: - | AP100: - | AQ100: - | AR100: - | AS100: - | AT100: - | AU100: - | AV100: - | AW100: - | AX100: -
A101: 102 | B101: 电子考勤 | C101: 杨艳彬 | H101: =VLOOKUP(C101,企业管理结算!$D:$E,2,0) -> 350 | I101: 0 | T101: - | U101: - | V101: - | W101: - | X101: - | Y101: - | Z101: - | AA101: - | AB101: - | AC101: - | AD101: - | AE101: - | AF101: - | AG101: - | AH101: - | AI101: - | AJ101: - | AK101: - | AL101: - | AM101: - | AN101: - | AO101: - | AP101: - | AQ101: - | AR101: - | AS101: - | AT101: - | AU101: - | AV101: - | AW101: - | AX101: -
A102: 103 | B102: 电子考勤 | C102: 郝运堂 | H102: =VLOOKUP(C102,企业管理结算!$D:$E,2,0) -> 280 | I102: 0 | T102: - | U102: - | V102: - | W102: - | X102: - | Y102: - | Z102: - | AA102: - | AB102: - | AC102: - | AD102: - | AE102: - | AF102: - | AG102: - | AH102: - | AI102: - | AJ102: - | AK102: - | AL102: - | AM102: - | AN102: - | AO102: - | AP102: - | AQ102: - | AR102: - | AS102: - | AT102: - | AU102: - | AV102: - | AW102: - | AX102: -
A103: 104 | B103: 电子考勤 | C103: 张仲山 | H103: =VLOOKUP(C103,企业管理结算!$D:$E,2,0) -> 240 | I103: 0 | T103: - | U103: - | V103: - | W103: - | X103: - | Y103: - | Z103: - | AA103: - | AB103: - | AC103: - | AD103: - | AE103: - | AF103: - | AG103: - | AH103: - | AI103: - | AJ103: - | AK103: - | AL103: - | AM103: - | AN103: - | AO103: - | AP103: - | AQ103: - | AR103: - | AS103: - | AT103: - | AU103: - | AV103: - | AW103: - | AX103: -
A104: 105 | B104: 电子考勤 | C104: 杨胜利 | H104: =VLOOKUP(C104,企业管理结算!$D:$E,2,0) -> 300 | I104: 0 | T104: - | U104: - | V104: - | W104: - | X104: - | Y104: - | Z104: - | AA104: - | AB104: - | AC104: - | AD104: - | AE104: - | AF104: - | AG104: - | AH104: - | AI104: - | AJ104: - | AK104: - | AL104: - | AM104: - | AN104: - | AO104: - | AP104: - | AQ104: - | AR104: - | AS104: - | AT104: - | AU104: - | AV104: - | AW104: - | AX104: -
A105: 106 | B105: 电子考勤 | C105: 付万亭 | H105: =VLOOKUP(C105,企业管理结算!$D:$E,2,0) -> 270 | I105: 0 | T105: - | U105: - | V105: - | W105: - | X105: - | Y105: - | Z105: - | AA105: - | AB105: - | AC105: - | AD105: - | AE105: - | AF105: - | AG105: - | AH105: - | AI105: - | AJ105: - | AK105: - | AL105: - | AM105: - | AN105: - | AO105: - | AP105: - | AQ105: - | AR105: - | AS105: - | AT105: - | AU105: - | AV105: - | AW105: - | AX105: -
A106: 107 | B106: 电子考勤 | C106: 李桂丽 | H106: =VLOOKUP(C106,企业管理结算!$D:$E,2,0) -> 160 | I106: 0 | T106: - | U106: - | V106: - | W106: - | X106: - | Y106: - | Z106: - | AA106: - | AB106: - | AC106: - | AD106: - | AE106: - | AF106: - | AG106: - | AH106: - | AI106: - | AJ106: - | AK106: - | AL106: - | AM106: - | AN106: - | AO106: - | AP106: - | AQ106: - | AR106: - | AS106: - | AT106: - | AU106: - | AV106: - | AW106: - | AX106: -
A107: 108 | B107: 电子考勤 | C107: 王胜山 | H107: =VLOOKUP(C107,企业管理结算!$D:$E,2,0) -> 300 | I107: 0 | T107: - | U107: - | V107: - | W107: - | X107: - | Y107: - | Z107: - | AA107: - | AB107: - | AC107: - | AD107: - | AE107: - | AF107: - | AG107: - | AH107: - | AI107: - | AJ107: - | AK107: - | AL107: - | AM107: - | AN107: - | AO107: - | AP107: - | AQ107: - | AR107: - | AS107: - | AT107: - | AU107: - | AV107: - | AW107: - | AX107: -
A108: 109 | B108: 电子考勤 | C108: 李文魁 | H108: =VLOOKUP(C108,企业管理结算!$D:$E,2,0) -> 300 | I108: 0 | T108: - | U108: - | V108: - | W108: - | X108: - | Y108: - | Z108: - | AA108: - | AB108: - | AC108: - | AD108: - | AE108: - | AF108: - | AG108: - | AH108: - | AI108: - | AJ108: - | AK108: - | AL108: - | AM108: - | AN108: - | AO108: - | AP108: - | AQ108: - | AR108: - | AS108: - | AT108: - | AU108: - | AV108: - | AW108: - | AX108: -
A109: 110 | B109: 电子考勤 | C109: 李文亮 | H109: =VLOOKUP(C109,企业管理结算!$D:$E,2,0) -> 300 | I109: 0 | T109: - | U109: - | V109: - | W109: - | X109: - | Y109: - | Z109: - | AA109: - | AB109: - | AC109: - | AD109: - | AE109: - | AF109: - | AG109: - | AH109: - | AI109: - | AJ109: - | AK109: - | AL109: - | AM109: - | AN109: - | AO109: - | AP109: - | AQ109: - | AR109: - | AS109: - | AT109: - | AU109: - | AV109: - | AW109: - | AX109: -
A110: 111 | B110: 电子考勤 | C110: 郝月桥 | H110: =VLOOKUP(C110,企业管理结算!$D:$E,2,0) -> 300 | I110: 0 | T110: - | U110: - | V110: - | W110: - | X110: - | Y110: - | Z110: - | AA110: - | AB110: - | AC110: - | AD110: - | AE110: - | AF110: - | AG110: - | AH110: - | AI110: - | AJ110: - | AK110: - | AL110: - | AM110: - | AN110: - | AO110: - | AP110: - | AQ110: - | AR110: - | AS110: - | AT110: - | AU110: - | AV110: - | AW110: - | AX110: -
A111: 112 | B111: 电子考勤 | C111: 李文亮 | H111: =VLOOKUP(C111,企业管理结算!$D:$E,2,0) -> 300 | I111: 0 | T111: - | U111: - | V111: - | W111: - | X111: - | Y111: - | Z111: - | AA111: - | AB111: - | AC111: - | AD111: - | AE111: - | AF111: - | AG111: - | AH111: - | AI111: - | AJ111: - | AK111: - | AL111: - | AM111: - | AN111: - | AO111: - | AP111: - | AQ111: - | AR111: - | AS111: - | AT111: - | AU111: - | AV111: - | AW111: - | AX111: -
A112: 113 | B112: 电子考勤 | C112: 杨艳彬 | H112: =VLOOKUP(C112,企业管理结算!$D:$E,2,0) -> 350 | I112: 0 | T112: - | U112: - | V112: - | W112: - | X112: - | Y112: - | Z112: - | AA112: - | AB112: - | AC112: - | AD112: - | AE112: - | AF112: - | AG112: - | AH112: - | AI112: - | AJ112: - | AK112: - | AL112: - | AM112: - | AN112: - | AO112: - | AP112: - | AQ112: - | AR112: - | AS112: - | AT112: - | AU112: - | AV112: - | AW112: - | AX112: -
A113: 114 | B113: 电子考勤 | C113: 杨胜利 | H113: =VLOOKUP(C113,企业管理结算!$D:$E,2,0) -> 300 | I113: 0 | T113: - | U113: - | V113: - | W113: - | X113: - | Y113: - | Z113: - | AA113: - | AB113: - | AC113: - | AD113: - | AE113: - | AF113: - | AG113: - | AH113: - | AI113: - | AJ113: - | AK113: - | AL113: - | AM113: - | AN113: - | AO113: - | AP113: - | AQ113: - | AR113: - | AS113: - | AT113: - | AU113: - | AV113: - | AW113: - | AX113: -
A114: 115 | B114: 电子考勤 | C114: 郝月桥 | H114: =VLOOKUP(C114,企业管理结算!$D:$E,2,0) -> 300 | I114: 0 | T114: - | U114: - | V114: - | W114: - | X114: - | Y114: - | Z114: - | AA114: - | AB114: - | AC114: - | AD114: - | AE114: - | AF114: - | AG114: - | AH114: - | AI114: - | AJ114: - | AK114: - | AL114: - | AM114: - | AN114: - | AO114: - | AP114: - | AQ114: - | AR114: - | AS114: - | AT114: - | AU114: - | AV114: - | AW114: - | AX114: -
A115: 116 | B115: 电子考勤 | C115: 李文亮 | H115: =VLOOKUP(C115,企业管理结算!$D:$E,2,0) -> 300 | I115: 0 | T115: - | U115: - | V115: - | W115: - | X115: - | Y115: - | Z115: - | AA115: - | AB115: - | AC115: - | AD115: - | AE115: - | AF115: - | AG115: - | AH115: - | AI115: - | AJ115: - | AK115: - | AL115: - | AM115: - | AN115: - | AO115: - | AP115: - | AQ115: - | AR115: - | AS115: - | AT115: - | AU115: - | AV115: - | AW115: - | AX115: -
A116: 117 | B116: 电子考勤 | C116: 杨艳彬 | H116: =VLOOKUP(C116,企业管理结算!$D:$E,2,0) -> 350 | I116: 0 | T116: - | U116: - | V116: - | W116: - | X116: - | Y116: - | Z116: - | AA116: - | AB116: - | AC116: - | AD116: - | AE116: - | AF116: - | AG116: - | AH116: - | AI116: - | AJ116: - | AK116: - | AL116: - | AM116: - | AN116: - | AO116: - | AP116: - | AQ116: - | AR116: - | AS116: - | AT116: - | AU116: - | AV116: - | AW116: - | AX116: -
A117: 118 | B117: 电子考勤 | C117: 张仲山 | H117: =VLOOKUP(C117,企业管理结算!$D:$E,2,0) -> 240 | I117: 0 | T117: - | U117: - | V117: - | W117: - | X117: - | Y117: - | Z117: - | AA117: - | AB117: - | AC117: - | AD117: - | AE117: - | AF117: - | AG117: - | AH117: - | AI117: - | AJ117: - | AK117: - | AL117: - | AM117: - | AN117: - | AO117: - | AP117: - | AQ117: - | AR117: - | AS117: - | AT117: - | AU117: - | AV117: - | AW117: - | AX117: -
A118: 119 | B118: 电子考勤 | C118: 李文亮 | H118: =VLOOKUP(C118,企业管理结算!$D:$E,2,0) -> 300 | I118: 0 | T118: - | U118: - | V118: - | W118: - | X118: - | Y118: - | Z118: - | AA118: - | AB118: - | AC118: - | AD118: - | AE118: - | AF118: - | AG118: - | AH118: - | AI118: - | AJ118: - | AK118: - | AL118: - | AM118: - | AN118: - | AO118: - | AP118: - | AQ118: - | AR118: - | AS118: - | AT118: - | AU118: - | AV118: - | AW118: - | AX118: -
A119: 120 | B119: 电子考勤 | C119: 李文魁 | H119: =VLOOKUP(C119,企业管理结算!$D:$E,2,0) -> 300 | I119: 0 | T119: - | U119: - | V119: - | W119: - | X119: - | Y119: - | Z119: - | AA119: - | AB119: - | AC119: - | AD119: - | AE119: - | AF119: - | AG119: - | AH119: - | AI119: - | AJ119: - | AK119: - | AL119: - | AM119: - | AN119: - | AO119: - | AP119: - | AQ119: - | AR119: - | AS119: - | AT119: - | AU119: - | AV119: - | AW119: - | AX119: -
A120: 121 | B120: 电子考勤 | C120: 杨胜利 | H120: =VLOOKUP(C120,企业管理结算!$D:$E,2,0) -> 300 | I120: 0 | T120: - | U120: - | V120: - | W120: - | X120: - | Y120: - | Z120: - | AA120: - | AB120: - | AC120: - | AD120: - | AE120: - | AF120: - | AG120: - | AH120: - | AI120: - | AJ120: - | AK120: - | AL120: - | AM120: - | AN120: - | AO120: - | AP120: - | AQ120: - | AR120: - | AS120: - | AT120: - | AU120: - | AV120: - | AW120: - | AX120: -
A121: 122 | B121: 电子考勤 | C121: 秦振文 | H121: =VLOOKUP(C121,企业管理结算!$D:$E,2,0) -> 340 | I121: 0 | T121: - | U121: - | V121: - | W121: - | X121: - | Y121: - | Z121: - | AA121: - | AB121: - | AC121: - | AD121: - | AE121: - | AF121: - | AG121: - | AH121: - | AI121: - | AJ121: - | AK121: - | AL121: - | AM121: - | AN121: - | AO121: - | AP121: - | AQ121: - | AR121: - | AS121: - | AT121: - | AU121: - | AV121: - | AW121: - | AX121: -
A122: 123 | B122: 电子考勤 | C122: 郝运堂 | H122: =VLOOKUP(C122,企业管理结算!$D:$E,2,0) -> 280 | I122: 0 | T122: - | U122: - | V122: - | W122: - | X122: - | Y122: - | Z122: - | AA122: - | AB122: - | AC122: - | AD122: - | AE122: - | AF122: - | AG122: - | AH122: - | AI122: - | AJ122: - | AK122: - | AL122: - | AM122: - | AN122: - | AO122: - | AP122: - | AQ122: - | AR122: - | AS122: - | AT122: - | AU122: - | AV122: - | AW122: - | AX122: -
A123: 124 | B123: 电子考勤 | C123: 王红福 | H123: =VLOOKUP(C123,企业管理结算!$D:$E,2,0) -> 285 | I123: 0 | T123: - | U123: - | V123: - | W123: - | X123: - | Y123: - | Z123: - | AA123: - | AB123: - | AC123: - | AD123: - | AE123: - | AF123: - | AG123: - | AH123: - | AI123: - | AJ123: - | AK123: - | AL123: - | AM123: - | AN123: - | AO123: - | AP123: - | AQ123: - | AR123: - | AS123: - | AT123: - | AU123: - | AV123: - | AW123: - | AX123: -
A124: 125 | B124: 电子考勤 | C124: 秦振文 | H124: =VLOOKUP(C124,企业管理结算!$D:$E,2,0) -> 340 | I124: 0 | T124: - | U124: - | V124: - | W124: - | X124: - | Y124: - | Z124: - | AA124: - | AB124: - | AC124: - | AD124: - | AE124: - | AF124: - | AG124: - | AH124: - | AI124: - | AJ124: - | AK124: - | AL124: - | AM124: - | AN124: - | AO124: - | AP124: - | AQ124: - | AR124: - | AS124: - | AT124: - | AU124: - | AV124: - | AW124: - | AX124: -
A125: 126 | B125: 电子考勤 | C125: 李文魁 | H125: =VLOOKUP(C125,企业管理结算!$D:$E,2,0) -> 300 | I125: 0 | T125: - | U125: - | V125: - | W125: - | X125: - | Y125: - | Z125: - | AA125: - | AB125: - | AC125: - | AD125: - | AE125: - | AF125: - | AG125: - | AH125: - | AI125: - | AJ125: - | AK125: - | AL125: - | AM125: - | AN125: - | AO125: - | AP125: - | AQ125: - | AR125: - | AS125: - | AT125: - | AU125: - | AV125: - | AW125: - | AX125: -
A126: 127 | B126: 电子考勤 | C126: 郝运堂 | H126: =VLOOKUP(C126,企业管理结算!$D:$E,2,0) -> 280 | I126: 0 | T126: - | U126: - | V126: - | W126: - | X126: - | Y126: - | Z126: - | AA126: - | AB126: - | AC126: - | AD126: - | AE126: - | AF126: - | AG126: - | AH126: - | AI126: - | AJ126: - | AK126: - | AL126: - | AM126: - | AN126: - | AO126: - | AP126: - | AQ126: - | AR126: - | AS126: - | AT126: - | AU126: - | AV126: - | AW126: - | AX126: -
A127: 128 | B127: 电子考勤 | C127: 张仲山 | H127: =VLOOKUP(C127,企业管理结算!$D:$E,2,0) -> 240 | I127: 0 | T127: - | U127: - | V127: - | W127: - | X127: - | Y127: - | Z127: - | AA127: - | AB127: - | AC127: - | AD127: - | AE127: - | AF127: - | AG127: - | AH127: - | AI127: - | AJ127: - | AK127: - | AL127: - | AM127: - | AN127: - | AO127: - | AP127: - | AQ127: - | AR127: - | AS127: - | AT127: - | AU127: - | AV127: - | AW127: - | AX127: -
A128: 129 | B128: 电子考勤 | C128: 李桂丽 | H128: =VLOOKUP(C128,企业管理结算!$D:$E,2,0) -> 160 | I128: =H128*Q128 -> 0 | T128: - | U128: - | V128: - | W128: - | X128: - | Y128: - | Z128: - | AA128: - | AB128: - | AC128: - | AD128: - | AE128: - | AF128: - | AG128: - | AH128: - | AI128: - | AJ128: - | AK128: - | AL128: - | AM128: - | AN128: - | AO128: - | AP128: - | AQ128: - | AR128: - | AS128: - | AT128: - | AU128: - | AV128: - | AW128: - | AX128: -
A129: 130 | B129: 电子考勤 | C129: 杨胜利 | H129: =VLOOKUP(C129,企业管理结算!$D:$E,2,0) -> 300 | I129: 0 | T129: - | U129: - | V129: - | W129: - | X129: - | Y129: - | Z129: - | AA129: - | AB129: - | AC129: - | AD129: - | AE129: - | AF129: - | AG129: - | AH129: - | AI129: - | AJ129: - | AK129: - | AL129: - | AM129: - | AN129: - | AO129: - | AP129: - | AQ129: - | AR129: - | AS129: - | AT129: - | AU129: - | AV129: - | AW129: - | AX129: -
A130: 131 | B130: 电子考勤 | C130: 王胜山 | H130: =VLOOKUP(C130,企业管理结算!$D:$E,2,0) -> 300 | I130: 0 | T130: - | U130: - | V130: - | W130: - | X130: - | Y130: - | Z130: - | AA130: - | AB130: - | AC130: - | AD130: - | AE130: - | AF130: - | AG130: - | AH130: - | AI130: - | AJ130: - | AK130: - | AL130: - | AM130: - | AN130: - | AO130: - | AP130: - | AQ130: - | AR130: - | AS130: - | AT130: - | AU130: - | AV130: - | AW130: - | AX130: -
A131: 132 | B131: 电子考勤 | C131: 杨艳彬 | H131: =VLOOKUP(C131,企业管理结算!$D:$E,2,0) -> 350 | I131: 0 | T131: - | U131: - | V131: - | W131: - | X131: - | Y131: - | Z131: - | AA131: - | AB131: - | AC131: - | AD131: - | AE131: - | AF131: - | AG131: - | AH131: - | AI131: - | AJ131: - | AK131: - | AL131: - | AM131: - | AN131: - | AO131: - | AP131: - | AQ131: - | AR131: - | AS131: - | AT131: - | AU131: - | AV131: - | AW131: - | AX131: -
A132: 133 | B132: 电子考勤 | C132: 郝月桥 | H132: =VLOOKUP(C132,企业管理结算!$D:$E,2,0) -> 300 | I132: 0 | T132: - | U132: - | V132: - | W132: - | X132: - | Y132: - | Z132: - | AA132: - | AB132: - | AC132: - | AD132: - | AE132: - | AF132: - | AG132: - | AH132: - | AI132: - | AJ132: - | AK132: - | AL132: - | AM132: - | AN132: - | AO132: - | AP132: - | AQ132: - | AR132: - | AS132: - | AT132: - | AU132: - | AV132: - | AW132: - | AX132: -
A133: 134 | B133: 电子考勤 | C133: 李文亮 | H133: =VLOOKUP(C133,企业管理结算!$D:$E,2,0) -> 300 | I133: 0 | T133: - | U133: - | V133: - | W133: - | X133: - | Y133: - | Z133: - | AA133: - | AB133: - | AC133: - | AD133: - | AE133: - | AF133: - | AG133: - | AH133: - | AI133: - | AJ133: - | AK133: - | AL133: - | AM133: - | AN133: - | AO133: - | AP133: - | AQ133: - | AR133: - | AS133: - | AT133: - | AU133: - | AV133: - | AW133: - | AX133: -
A134: 135 | B134: 电子考勤 | C134: 郝月桥 | H134: =VLOOKUP(C134,企业管理结算!$D:$E,2,0) -> 300 | I134: 0 | T134: - | U134: - | V134: - | W134: - | X134: - | Y134: - | Z134: - | AA134: - | AB134: - | AC134: - | AD134: - | AE134: - | AF134: - | AG134: - | AH134: - | AI134: - | AJ134: - | AK134: - | AL134: - | AM134: - | AN134: - | AO134: - | AP134: - | AQ134: - | AR134: - | AS134: - | AT134: - | AU134: - | AV134: - | AW134: - | AX134: -
A135: 136 | B135: 电子考勤 | C135: 李文亮 | H135: =VLOOKUP(C135,企业管理结算!$D:$E,2,0) -> 300 | I135: 0 | T135: - | U135: - | V135: - | W135: - | X135: - | Y135: - | Z135: - | AA135: - | AB135: - | AC135: - | AD135: - | AE135: - | AF135: - | AG135: - | AH135: - | AI135: - | AJ135: - | AK135: - | AL135: - | AM135: - | AN135: - | AO135: - | AP135: - | AQ135: - | AR135: - | AS135: - | AT135: - | AU135: - | AV135: - | AW135: - | AX135: -
A136: 137 | B136: 电子考勤 | C136: 杨艳彬 | H136: =VLOOKUP(C136,企业管理结算!$D:$E,2,0) -> 350 | I136: 0 | T136: - | U136: - | V136: - | W136: - | X136: - | Y136: - | Z136: - | AA136: - | AB136: - | AC136: - | AD136: - | AE136: - | AF136: - | AG136: - | AH136: - | AI136: - | AJ136: - | AK136: - | AL136: - | AM136: - | AN136: - | AO136: - | AP136: - | AQ136: - | AR136: - | AS136: - | AT136: - | AU136: - | AV136: - | AW136: - | AX136: -
A137: 138 | B137: 电子考勤 | C137: 杨胜利 | H137: =VLOOKUP(C137,企业管理结算!$D:$E,2,0) -> 300 | I137: 0 | T137: - | U137: - | V137: - | W137: - | X137: - | Y137: - | Z137: - | AA137: - | AB137: - | AC137: - | AD137: - | AE137: - | AF137: - | AG137: - | AH137: - | AI137: - | AJ137: - | AK137: - | AL137: - | AM137: - | AN137: - | AO137: - | AP137: - | AQ137: - | AR137: - | AS137: - | AT137: - | AU137: - | AV137: - | AW137: - | AX137: -
A138: 139 | B138: 电子考勤 | C138: 李文亮 | H138: =VLOOKUP(C138,企业管理结算!$D:$E,2,0) -> 300 | I138: 0 | T138: - | U138: - | V138: - | W138: - | X138: - | Y138: - | Z138: - | AA138: - | AB138: - | AC138: - | AD138: - | AE138: - | AF138: - | AG138: - | AH138: - | AI138: - | AJ138: - | AK138: - | AL138: - | AM138: - | AN138: - | AO138: - | AP138: - | AQ138: - | AR138: - | AS138: - | AT138: - | AU138: - | AV138: - | AW138: - | AX138: -
A139: 140 | B139: 电子考勤 | C139: 李文魁 | H139: =VLOOKUP(C139,企业管理结算!$D:$E,2,0) -> 300 | I139: 0 | T139: - | U139: - | V139: - | W139: - | X139: - | Y139: - | Z139: - | AA139: - | AB139: - | AC139: - | AD139: - | AE139: - | AF139: - | AG139: - | AH139: - | AI139: - | AJ139: - | AK139: - | AL139: - | AM139: - | AN139: - | AO139: - | AP139: - | AQ139: - | AR139: - | AS139: - | AT139: - | AU139: - | AV139: - | AW139: - | AX139: -
A140: 141 | B140: 电子考勤 | C140: 王胜山 | H140: =VLOOKUP(C140,企业管理结算!$D:$E,2,0) -> 300 | I140: 0 | T140: - | U140: - | V140: - | W140: - | X140: - | Y140: - | Z140: - | AA140: - | AB140: - | AC140: - | AD140: - | AE140: - | AF140: - | AG140: - | AH140: - | AI140: - | AJ140: - | AK140: - | AL140: - | AM140: - | AN140: - | AO140: - | AP140: - | AQ140: - | AR140: - | AS140: - | AT140: - | AU140: - | AV140: - | AW140: - | AX140: -
A141: 142 | B141: 电子考勤 | C141: 杨胜利 | H141: =VLOOKUP(C141,企业管理结算!$D:$E,2,0) -> 300 | I141: 0 | T141: - | U141: - | V141: - | W141: - | X141: - | Y141: - | Z141: - | AA141: - | AB141: - | AC141: - | AD141: - | AE141: - | AF141: - | AG141: - | AH141: - | AI141: - | AJ141: - | AK141: - | AL141: - | AM141: - | AN141: - | AO141: - | AP141: - | AQ141: - | AR141: - | AS141: - | AT141: - | AU141: - | AV141: - | AW141: - | AX141: -
A142: 143 | B142: 电子考勤 | C142: 郝月桥 | H142: =VLOOKUP(C142,企业管理结算!$D:$E,2,0) -> 300 | I142: 0 | T142: - | U142: - | V142: - | W142: - | X142: - | Y142: - | Z142: - | AA142: - | AB142: - | AC142: - | AD142: - | AE142: - | AF142: - | AG142: - | AH142: - | AI142: - | AJ142: - | AK142: - | AL142: - | AM142: - | AN142: - | AO142: - | AP142: - | AQ142: - | AR142: - | AS142: - | AT142: - | AU142: - | AV142: - | AW142: - | AX142: -
A143: 144 | B143: 电子考勤 | C143: 郝运堂 | H143: =VLOOKUP(C143,企业管理结算!$D:$E,2,0) -> 280 | I143: 0 | T143: - | U143: - | V143: - | W143: - | X143: - | Y143: - | Z143: - | AA143: - | AB143: - | AC143: - | AD143: - | AE143: - | AF143: - | AG143: - | AH143: - | AI143: - | AJ143: - | AK143: - | AL143: - | AM143: - | AN143: - | AO143: - | AP143: - | AQ143: - | AR143: - | AS143: - | AT143: - | AU143: - | AV143: - | AW143: - | AX143: -
A144: 145 | B144: 电子考勤 | C144: 王胜山 | H144: =VLOOKUP(C144,企业管理结算!$D:$E,2,0) -> 300 | I144: 0 | T144: - | U144: - | V144: - | W144: - | X144: - | Y144: - | Z144: - | AA144: - | AB144: - | AC144: - | AD144: - | AE144: - | AF144: - | AG144: - | AH144: - | AI144: - | AJ144: - | AK144: - | AL144: - | AM144: - | AN144: - | AO144: - | AP144: - | AQ144: - | AR144: - | AS144: - | AT144: - | AU144: - | AV144: - | AW144: - | AX144: -
A145: 146 | B145: 电子考勤 | C145: 王涛1 | H145: =VLOOKUP(C145,企业管理结算!$D:$E,2,0) -> 270 | I145: 0 | T145: - | U145: - | V145: - | W145: - | X145: - | Y145: - | Z145: - | AA145: - | AB145: - | AC145: - | AD145: - | AE145: - | AF145: - | AG145: - | AH145: - | AI145: - | AJ145: - | AK145: - | AL145: - | AM145: - | AN145: - | AO145: - | AP145: - | AQ145: - | AR145: - | AS145: - | AT145: - | AU145: - | AV145: - | AW145: - | AX145: -
A146: 147 | B146: 电子考勤 | C146: 张占亮 | H146: =VLOOKUP(C146,企业管理结算!$D:$E,2,0) -> 240 | I146: 0 | T146: - | U146: - | V146: - | W146: - | X146: - | Y146: - | Z146: - | AA146: - | AB146: - | AC146: - | AD146: - | AE146: - | AF146: - | AG146: - | AH146: - | AI146: - | AJ146: - | AK146: - | AL146: - | AM146: - | AN146: - | AO146: - | AP146: - | AQ146: - | AR146: - | AS146: - | AT146: - | AU146: - | AV146: - | AW146: - | AX146: -
A147: 148 | B147: 电子考勤 | C147: 李书章 | H147: =VLOOKUP(C147,企业管理结算!$D:$E,2,0) -> 380 | I147: 0 | T147: - | U147: - | V147: - | W147: - | X147: - | Y147: - | Z147: - | AA147: - | AB147: - | AC147: - | AD147: - | AE147: - | AF147: - | AG147: - | AH147: - | AI147: - | AJ147: - | AK147: - | AL147: - | AM147: - | AN147: - | AO147: - | AP147: - | AQ147: - | AR147: - | AS147: - | AT147: - | AU147: - | AV147: - | AW147: - | AX147: -
A148: 149 | B148: 电子考勤 | C148: 贺松 | H148: =VLOOKUP(C148,企业管理结算!$D:$E,2,0) -> 310 | I148: 0 | T148: - | U148: - | V148: - | W148: - | X148: - | Y148: - | Z148: - | AA148: - | AB148: - | AC148: - | AD148: - | AE148: - | AF148: - | AG148: - | AH148: - | AI148: - | AJ148: - | AK148: - | AL148: - | AM148: - | AN148: - | AO148: - | AP148: - | AQ148: - | AR148: - | AS148: - | AT148: - | AU148: - | AV148: - | AW148: - | AX148: -
A149: 150 | B149: 电子考勤 | C149: 李桂丽 | H149: =VLOOKUP(C149,企业管理结算!$D:$E,2,0) -> 160 | I149: 0 | T149: - | U149: - | V149: - | W149: - | X149: - | Y149: - | Z149: - | AA149: - | AB149: - | AC149: - | AD149: - | AE149: - | AF149: - | AG149: - | AH149: - | AI149: - | AJ149: - | AK149: - | AL149: - | AM149: - | AN149: - | AO149: - | AP149: - | AQ149: - | AR149: - | AS149: - | AT149: - | AU149: - | AV149: - | AW149: - | AX149: -
A150: 151 | B150: 电子考勤 | C150: 秦振文 | H150: =VLOOKUP(C150,企业管理结算!$D:$E,2,0) -> 340 | I150: 0 | T150: - | U150: - | V150: - | W150: - | X150: - | Y150: - | Z150: - | AA150: - | AB150: - | AC150: - | AD150: - | AE150: - | AF150: - | AG150: - | AH150: - | AI150: - | AJ150: - | AK150: - | AL150: - | AM150: - | AN150: - | AO150: - | AP150: - | AQ150: - | AR150: - | AS150: - | AT150: - | AU150: - | AV150: - | AW150: - | AX150: -
A151: 152 | B151: 电子考勤 | C151: 郝运堂 | H151: =VLOOKUP(C151,企业管理结算!$D:$E,2,0) -> 280 | I151: 0 | T151: - | U151: - | V151: - | W151: - | X151: - | Y151: - | Z151: - | AA151: - | AB151: - | AC151: - | AD151: - | AE151: - | AF151: - | AG151: - | AH151: - | AI151: - | AJ151: - | AK151: - | AL151: - | AM151: - | AN151: - | AO151: - | AP151: - | AQ151: - | AR151: - | AS151: - | AT151: - | AU151: - | AV151: - | AW151: - | AX151: -
A152: 153 | B152: 电子考勤 | C152: 李文魁 | H152: =VLOOKUP(C152,企业管理结算!$D:$E,2,0) -> 300 | I152: 0 | T152: - | U152: - | V152: - | W152: - | X152: - | Y152: - | Z152: - | AA152: - | AB152: - | AC152: - | AD152: - | AE152: - | AF152: - | AG152: - | AH152: - | AI152: - | AJ152: - | AK152: - | AL152: - | AM152: - | AN152: - | AO152: - | AP152: - | AQ152: - | AR152: - | AS152: - | AT152: - | AU152: - | AV152: - | AW152: - | AX152: -
A153: 154 | B153: 电子考勤 | C153: 王胜山 | H153: =VLOOKUP(C153,企业管理结算!$D:$E,2,0) -> 300 | I153: 0 | T153: - | U153: - | V153: - | W153: - | X153: - | Y153: - | Z153: - | AA153: - | AB153: - | AC153: - | AD153: - | AE153: - | AF153: - | AG153: - | AH153: - | AI153: - | AJ153: - | AK153: - | AL153: - | AM153: - | AN153: - | AO153: - | AP153: - | AQ153: - | AR153: - | AS153: - | AT153: - | AU153: - | AV153: - | AW153: - | AX153: -
A154: 155 | B154: 电子考勤 | C154: 杨胜利 | H154: =VLOOKUP(C154,企业管理结算!$D:$E,2,0) -> 300 | I154: 0 | T154: - | U154: - | V154: - | W154: - | X154: - | Y154: - | Z154: - | AA154: - | AB154: - | AC154: - | AD154: - | AE154: - | AF154: - | AG154: - | AH154: - | AI154: - | AJ154: - | AK154: - | AL154: - | AM154: - | AN154: - | AO154: - | AP154: - | AQ154: - | AR154: - | AS154: - | AT154: - | AU154: - | AV154: - | AW154: - | AX154: -
A155: 156 | B155: 电子考勤 | C155: 郝月桥 | H155: =VLOOKUP(C155,企业管理结算!$D:$E,2,0) -> 300 | I155: 0 | T155: - | U155: - | V155: - | W155: - | X155: - | Y155: - | Z155: - | AA155: - | AB155: - | AC155: - | AD155: - | AE155: - | AF155: - | AG155: - | AH155: - | AI155: - | AJ155: - | AK155: - | AL155: - | AM155: - | AN155: - | AO155: - | AP155: - | AQ155: - | AR155: - | AS155: - | AT155: - | AU155: - | AV155: - | AW155: - | AX155: -
A156: 157 | B156: 电子考勤 | C156: 杨艳彬 | H156: =VLOOKUP(C156,企业管理结算!$D:$E,2,0) -> 350 | I156: 0 | T156: - | U156: - | V156: - | W156: - | X156: - | Y156: - | Z156: - | AA156: - | AB156: - | AC156: - | AD156: - | AE156: - | AF156: - | AG156: - | AH156: - | AI156: - | AJ156: - | AK156: - | AL156: - | AM156: - | AN156: - | AO156: - | AP156: - | AQ156: - | AR156: - | AS156: - | AT156: - | AU156: - | AV156: - | AW156: - | AX156: -
A157: 158 | B157: 电子考勤 | C157: 张仲山 | H157: =VLOOKUP(C157,企业管理结算!$D:$E,2,0) -> 240 | I157: 0 | T157: - | U157: - | V157: - | W157: - | X157: - | Y157: - | Z157: - | AA157: - | AB157: - | AC157: - | AD157: - | AE157: - | AF157: - | AG157: - | AH157: - | AI157: - | AJ157: - | AK157: - | AL157: - | AM157: - | AN157: - | AO157: - | AP157: - | AQ157: - | AR157: - | AS157: - | AT157: - | AU157: - | AV157: - | AW157: - | AX157: -
A158: 159 | B158: 电子考勤 | C158: 李文亮 | H158: =VLOOKUP(C158,企业管理结算!$D:$E,2,0) -> 300 | I158: 0 | T158: - | U158: - | V158: - | W158: - | X158: - | Y158: - | Z158: - | AA158: - | AB158: - | AC158: - | AD158: - | AE158: - | AF158: - | AG158: - | AH158: - | AI158: - | AJ158: - | AK158: - | AL158: - | AM158: - | AN158: - | AO158: - | AP158: - | AQ158: - | AR158: - | AS158: - | AT158: - | AU158: - | AV158: - | AW158: - | AX158: -
A159: 160 | B159: 电子考勤 | C159: 李文魁 | H159: =VLOOKUP(C159,企业管理结算!$D:$E,2,0) -> 300 | I159: 0 | T159: - | U159: - | V159: - | W159: - | X159: - | Y159: - | Z159: - | AA159: - | AB159: - | AC159: - | AD159: - | AE159: - | AF159: - | AG159: - | AH159: - | AI159: - | AJ159: - | AK159: - | AL159: - | AM159: - | AN159: - | AO159: - | AP159: - | AQ159: - | AR159: - | AS159: - | AT159: - | AU159: - | AV159: - | AW159: - | AX159: -
A160: 161 | B160: 电子考勤 | C160: 杨胜利 | H160: =VLOOKUP(C160,企业管理结算!$D:$E,2,0) -> 300 | I160: 0 | T160: - | U160: - | V160: - | W160: - | X160: - | Y160: - | Z160: - | AA160: - | AB160: - | AC160: - | AD160: - | AE160: - | AF160: - | AG160: - | AH160: - | AI160: - | AJ160: - | AK160: - | AL160: - | AM160: - | AN160: - | AO160: - | AP160: - | AQ160: - | AR160: - | AS160: - | AT160: - | AU160: - | AV160: - | AW160: - | AX160: -
A161: 162 | B161: 电子考勤 | C161: 郝运堂 | H161: =VLOOKUP(C161,企业管理结算!$D:$E,2,0) -> 280 | I161: 0 | T161: - | U161: - | V161: - | W161: - | X161: - | Y161: - | Z161: - | AA161: - | AB161: - | AC161: - | AD161: - | AE161: - | AF161: - | AG161: - | AH161: - | AI161: - | AJ161: - | AK161: - | AL161: - | AM161: - | AN161: - | AO161: - | AP161: - | AQ161: - | AR161: - | AS161: - | AT161: - | AU161: - | AV161: - | AW161: - | AX161: -
A162: 163 | B162: 电子考勤 | C162: 李文亮 | H162: =VLOOKUP(C162,企业管理结算!$D:$E,2,0) -> 300 | I162: 0 | T162: - | U162: - | V162: - | W162: - | X162: - | Y162: - | Z162: - | AA162: - | AB162: - | AC162: - | AD162: - | AE162: - | AF162: - | AG162: - | AH162: - | AI162: - | AJ162: - | AK162: - | AL162: - | AM162: - | AN162: - | AO162: - | AP162: - | AQ162: - | AR162: - | AS162: - | AT162: - | AU162: - | AV162: - | AW162: - | AX162: -
A163: 164 | B163: 电子考勤 | C163: 李文魁 | H163: =VLOOKUP(C163,企业管理结算!$D:$E,2,0) -> 300 | I163: 0 | T163: - | U163: - | V163: - | W163: - | X163: - | Y163: - | Z163: - | AA163: - | AB163: - | AC163: - | AD163: - | AE163: - | AF163: - | AG163: - | AH163: - | AI163: - | AJ163: - | AK163: - | AL163: - | AM163: - | AN163: - | AO163: - | AP163: - | AQ163: - | AR163: - | AS163: - | AT163: - | AU163: - | AV163: - | AW163: - | AX163: -
A164: 165 | B164: 电子考勤 | C164: 杨艳彬 | H164: =VLOOKUP(C164,企业管理结算!$D:$E,2,0) -> 350 | I164: 0 | T164: - | U164: - | V164: - | W164: - | X164: - | Y164: - | Z164: - | AA164: - | AB164: - | AC164: - | AD164: - | AE164: - | AF164: - | AG164: - | AH164: - | AI164: - | AJ164: - | AK164: - | AL164: - | AM164: - | AN164: - | AO164: - | AP164: - | AQ164: - | AR164: - | AS164: - | AT164: - | AU164: - | AV164: - | AW164: - | AX164: -
A165: 166 | B165: 电子考勤 | C165: 郝运堂 | H165: =VLOOKUP(C165,企业管理结算!$D:$E,2,0) -> 280 | I165: 0 | T165: - | U165: - | V165: - | W165: - | X165: - | Y165: - | Z165: - | AA165: - | AB165: - | AC165: - | AD165: - | AE165: - | AF165: - | AG165: - | AH165: - | AI165: - | AJ165: - | AK165: - | AL165: - | AM165: - | AN165: - | AO165: - | AP165: - | AQ165: - | AR165: - | AS165: - | AT165: - | AU165: - | AV165: - | AW165: - | AX165: -
A166: 167 | B166: 电子考勤 | C166: 张仲山 | H166: =VLOOKUP(C166,企业管理结算!$D:$E,2,0) -> 240 | I166: 0 | T166: - | U166: - | V166: - | W166: - | X166: - | Y166: - | Z166: - | AA166: - | AB166: - | AC166: - | AD166: - | AE166: - | AF166: - | AG166: - | AH166: - | AI166: - | AJ166: - | AK166: - | AL166: - | AM166: - | AN166: - | AO166: - | AP166: - | AQ166: - | AR166: - | AS166: - | AT166: - | AU166: - | AV166: - | AW166: - | AX166: -
A167: 168 | B167: 电子考勤 | C167: 王胜山 | H167: =VLOOKUP(C167,企业管理结算!$D:$E,2,0) -> 300 | I167: 0 | T167: - | U167: - | V167: - | W167: - | X167: - | Y167: - | Z167: - | AA167: - | AB167: - | AC167: - | AD167: - | AE167: - | AF167: - | AG167: - | AH167: - | AI167: - | AJ167: - | AK167: - | AL167: - | AM167: - | AN167: - | AO167: - | AP167: - | AQ167: - | AR167: - | AS167: - | AT167: - | AU167: - | AV167: - | AW167: - | AX167: -
A168: 169 | B168: 电子考勤 | C168: 杨胜利 | H168: =VLOOKUP(C168,企业管理结算!$D:$E,2,0) -> 300 | I168: 0 | T168: - | U168: - | V168: - | W168: - | X168: - | Y168: - | Z168: - | AA168: - | AB168: - | AC168: - | AD168: - | AE168: - | AF168: - | AG168: - | AH168: - | AI168: - | AJ168: - | AK168: - | AL168: - | AM168: - | AN168: - | AO168: - | AP168: - | AQ168: - | AR168: - | AS168: - | AT168: - | AU168: - | AV168: - | AW168: - | AX168: -
A169: 170 | B169: 电子考勤 | C169: 李桂丽 | H169: =VLOOKUP(C169,企业管理结算!$D:$E,2,0) -> 160 | I169: 0 | T169: - | U169: - | V169: - | W169: - | X169: - | Y169: - | Z169: - | AA169: - | AB169: - | AC169: - | AD169: - | AE169: - | AF169: - | AG169: - | AH169: - | AI169: - | AJ169: - | AK169: - | AL169: - | AM169: - | AN169: - | AO169: - | AP169: - | AQ169: - | AR169: - | AS169: - | AT169: - | AU169: - | AV169: - | AW169: - | AX169: -
A170: 171 | B170: 电子考勤 | C170: 秦振文 | H170: =VLOOKUP(C170,企业管理结算!$D:$E,2,0) -> 340 | I170: 0 | T170: - | U170: - | V170: - | W170: - | X170: - | Y170: - | Z170: - | AA170: - | AB170: - | AC170: - | AD170: - | AE170: - | AF170: - | AG170: - | AH170: - | AI170: - | AJ170: - | AK170: - | AL170: - | AM170: - | AN170: - | AO170: - | AP170: - | AQ170: - | AR170: - | AS170: - | AT170: - | AU170: - | AV170: - | AW170: - | AX170: -
A171: 172 | B171: 电子考勤 | C171: 张仲山 | H171: =VLOOKUP(C171,企业管理结算!$D:$E,2,0) -> 240 | I171: 0 | T171: - | U171: - | V171: - | W171: - | X171: - | Y171: - | Z171: - | AA171: - | AB171: - | AC171: - | AD171: - | AE171: - | AF171: - | AG171: - | AH171: - | AI171: - | AJ171: - | AK171: - | AL171: - | AM171: - | AN171: - | AO171: - | AP171: - | AQ171: - | AR171: - | AS171: - | AT171: - | AU171: - | AV171: - | AW171: - | AX171: -
A172: 173 | B172: 电子考勤 | C172: 杨胜利 | H172: =VLOOKUP(C172,企业管理结算!$D:$E,2,0) -> 300 | I172: 0 | T172: - | U172: - | V172: - | W172: - | X172: - | Y172: - | Z172: - | AA172: - | AB172: - | AC172: - | AD172: - | AE172: - | AF172: - | AG172: - | AH172: - | AI172: - | AJ172: - | AK172: - | AL172: - | AM172: - | AN172: - | AO172: - | AP172: - | AQ172: - | AR172: - | AS172: - | AT172: - | AU172: - | AV172: - | AW172: - | AX172: -
A173: 174 | B173: 电子考勤 | C173: 郝月桥 | H173: =VLOOKUP(C173,企业管理结算!$D:$E,2,0) -> 300 | I173: 0 | T173: - | U173: - | V173: - | W173: - | X173: - | Y173: - | Z173: - | AA173: - | AB173: - | AC173: - | AD173: - | AE173: - | AF173: - | AG173: - | AH173: - | AI173: - | AJ173: - | AK173: - | AL173: - | AM173: - | AN173: - | AO173: - | AP173: - | AQ173: - | AR173: - | AS173: - | AT173: - | AU173: - | AV173: - | AW173: - | AX173: -
A174: 175 | B174: 电子考勤 | C174: 张占亮 | H174: =VLOOKUP(C174,企业管理结算!$D:$E,2,0) -> 240 | I174: 0 | T174: - | U174: - | V174: - | W174: - | X174: - | Y174: - | Z174: - | AA174: - | AB174: - | AC174: - | AD174: - | AE174: - | AF174: - | AG174: - | AH174: - | AI174: - | AJ174: - | AK174: - | AL174: - | AM174: - | AN174: - | AO174: - | AP174: - | AQ174: - | AR174: - | AS174: - | AT174: - | AU174: - | AV174: - | AW174: - | AX174: -
A175: 176 | B175: 电子考勤 | C175: 王胜山 | H175: =VLOOKUP(C175,企业管理结算!$D:$E,2,0) -> 300 | I175: 0 | T175: - | U175: - | V175: - | W175: - | X175: - | Y175: - | Z175: - | AA175: - | AB175: - | AC175: - | AD175: - | AE175: - | AF175: - | AG175: - | AH175: - | AI175: - | AJ175: - | AK175: - | AL175: - | AM175: - | AN175: - | AO175: - | AP175: - | AQ175: - | AR175: - | AS175: - | AT175: - | AU175: - | AV175: - | AW175: - | AX175: -
A176: 177 | B176: 电子考勤 | C176: 贺松 | H176: =VLOOKUP(C176,企业管理结算!$D:$E,2,0) -> 310 | I176: 0 | T176: - | U176: - | V176: - | W176: - | X176: - | Y176: - | Z176: - | AA176: - | AB176: - | AC176: - | AD176: - | AE176: - | AF176: - | AG176: - | AH176: - | AI176: - | AJ176: - | AK176: - | AL176: - | AM176: - | AN176: - | AO176: - | AP176: - | AQ176: - | AR176: - | AS176: - | AT176: - | AU176: - | AV176: - | AW176: - | AX176: -
A177: 178 | B177: 电子考勤 | C177: 李文亮 | H177: =VLOOKUP(C177,企业管理结算!$D:$E,2,0) -> 300 | I177: 0 | T177: - | U177: - | V177: - | W177: - | X177: - | Y177: - | Z177: - | AA177: - | AB177: - | AC177: - | AD177: - | AE177: - | AF177: - | AG177: - | AH177: - | AI177: - | AJ177: - | AK177: - | AL177: - | AM177: - | AN177: - | AO177: - | AP177: - | AQ177: - | AR177: - | AS177: - | AT177: - | AU177: - | AV177: - | AW177: - | AX177: -
A178: 179 | B178: 电子考勤 | C178: 杨艳彬 | H178: =VLOOKUP(C178,企业管理结算!$D:$E,2,0) -> 350 | I178: 0 | T178: - | U178: - | V178: - | W178: - | X178: - | Y178: - | Z178: - | AA178: - | AB178: - | AC178: - | AD178: - | AE178: - | AF178: - | AG178: - | AH178: - | AI178: - | AJ178: - | AK178: - | AL178: - | AM178: - | AN178: - | AO178: - | AP178: - | AQ178: - | AR178: - | AS178: - | AT178: - | AU178: - | AV178: - | AW178: - | AX178: -
A179: 180 | B179: 电子考勤 | C179: 张仲山 | H179: =VLOOKUP(C179,企业管理结算!$D:$E,2,0) -> 240 | I179: 0 | T179: - | U179: - | V179: - | W179: - | X179: - | Y179: - | Z179: - | AA179: - | AB179: - | AC179: - | AD179: - | AE179: - | AF179: - | AG179: - | AH179: - | AI179: - | AJ179: - | AK179: - | AL179: - | AM179: - | AN179: - | AO179: - | AP179: - | AQ179: - | AR179: - | AS179: - | AT179: - | AU179: - | AV179: - | AW179: - | AX179: -
A180: 181 | B180: 电子考勤 | C180: 郝运堂 | H180: =VLOOKUP(C180,企业管理结算!$D:$E,2,0) -> 280 | I180: 0 | T180: - | U180: - | V180: - | W180: - | X180: - | Y180: - | Z180: - | AA180: - | AB180: - | AC180: - | AD180: - | AE180: - | AF180: - | AG180: - | AH180: - | AI180: - | AJ180: - | AK180: - | AL180: - | AM180: - | AN180: - | AO180: - | AP180: - | AQ180: - | AR180: - | AS180: - | AT180: - | AU180: - | AV180: - | AW180: - | AX180: -
A181: 182 | B181: 电子考勤 | C181: 李旭朋 | H181: =VLOOKUP(C181,企业管理结算!$D:$E,2,0) -> 0 | I181: 0 | T181: - | U181: - | V181: - | W181: - | X181: - | Y181: - | Z181: - | AA181: - | AB181: - | AC181: - | AD181: - | AE181: - | AF181: - | AG181: - | AH181: - | AI181: - | AJ181: - | AK181: - | AL181: - | AM181: - | AN181: - | AO181: - | AP181: - | AQ181: - | AR181: - | AS181: - | AT181: - | AU181: - | AV181: - | AW181: - | AX181: -
A182: 183 | B182: 电子考勤 | C182: 秦俊云 | H182: =VLOOKUP(C182,企业管理结算!$D:$E,2,0) -> 0 | I182: 0 | T182: - | U182: - | V182: - | W182: - | X182: - | Y182: - | Z182: - | AA182: - | AB182: - | AC182: - | AD182: - | AE182: - | AF182: - | AG182: - | AH182: - | AI182: - | AJ182: - | AK182: - | AL182: - | AM182: - | AN182: - | AO182: - | AP182: - | AQ182: - | AR182: - | AS182: - | AT182: - | AU182: - | AV182: - | AW182: - | AX182: -
A183: 184 | B183: 电子考勤 | C183: 李文亮 | H183: =VLOOKUP(C183,企业管理结算!$D:$E,2,0) -> 300 | I183: 0 | T183: - | U183: - | V183: - | W183: - | X183: - | Y183: - | Z183: - | AA183: - | AB183: - | AC183: - | AD183: - | AE183: - | AF183: - | AG183: - | AH183: - | AI183: - | AJ183: - | AK183: - | AL183: - | AM183: - | AN183: - | AO183: - | AP183: - | AQ183: - | AR183: - | AS183: - | AT183: - | AU183: - | AV183: - | AW183: - | AX183: -
A184: 185 | B184: 电子考勤 | C184: 秦振文 | H184: =VLOOKUP(C184,企业管理结算!$D:$E,2,0) -> 340 | I184: 0 | T184: - | U184: - | V184: - | W184: - | X184: - | Y184: - | Z184: - | AA184: - | AB184: - | AC184: - | AD184: - | AE184: - | AF184: - | AG184: - | AH184: - | AI184: - | AJ184: - | AK184: - | AL184: - | AM184: - | AN184: - | AO184: - | AP184: - | AQ184: - | AR184: - | AS184: - | AT184: - | AU184: - | AV184: - | AW184: - | AX184: -
A185: 186 | B185: 电子考勤 | C185: 李文魁 | H185: =VLOOKUP(C185,企业管理结算!$D:$E,2,0) -> 300 | I185: 0 | T185: - | U185: - | V185: - | W185: - | X185: - | Y185: - | Z185: - | AA185: - | AB185: - | AC185: - | AD185: - | AE185: - | AF185: - | AG185: - | AH185: - | AI185: - | AJ185: - | AK185: - | AL185: - | AM185: - | AN185: - | AO185: - | AP185: - | AQ185: - | AR185: - | AS185: - | AT185: - | AU185: - | AV185: - | AW185: - | AX185: -
A186: 187 | B186: 电子考勤 | C186: 杨艳彬 | H186: =VLOOKUP(C186,企业管理结算!$D:$E,2,0) -> 350 | I186: 0 | T186: - | U186: - | V186: - | W186: - | X186: - | Y186: - | Z186: - | AA186: - | AB186: - | AC186: - | AD186: - | AE186: - | AF186: - | AG186: - | AH186: - | AI186: - | AJ186: - | AK186: - | AL186: - | AM186: - | AN186: - | AO186: - | AP186: - | AQ186: - | AR186: - | AS186: - | AT186: - | AU186: - | AV186: - | AW186: - | AX186: -
A187: 188 | B187: 电子考勤 | C187: 杨胜利 | H187: =VLOOKUP(C187,企业管理结算!$D:$E,2,0) -> 300 | I187: 0 | T187: - | U187: - | V187: - | W187: - | X187: - | Y187: - | Z187: - | AA187: - | AB187: - | AC187: - | AD187: - | AE187: - | AF187: - | AG187: - | AH187: - | AI187: - | AJ187: - | AK187: - | AL187: - | AM187: - | AN187: - | AO187: - | AP187: - | AQ187: - | AR187: - | AS187: - | AT187: - | AU187: - | AV187: - | AW187: - | AX187: -
A188: 189 | B188: 电子考勤 | C188: 李桂丽 | H188: =VLOOKUP(C188,企业管理结算!$D:$E,2,0) -> 160 | I188: 0 | T188: - | U188: - | V188: - | W188: - | X188: - | Y188: - | Z188: - | AA188: - | AB188: - | AC188: - | AD188: - | AE188: - | AF188: - | AG188: - | AH188: - | AI188: - | AJ188: - | AK188: - | AL188: - | AM188: - | AN188: - | AO188: - | AP188: - | AQ188: - | AR188: - | AS188: - | AT188: - | AU188: - | AV188: - | AW188: - | AX188: -
A189: 190 | B189: 电子考勤 | C189: 李文亮 | H189: =VLOOKUP(C189,企业管理结算!$D:$E,2,0) -> 300 | I189: 0 | T189: - | U189: - | V189: - | W189: - | X189: - | Y189: - | Z189: - | AA189: - | AB189: - | AC189: - | AD189: - | AE189: - | AF189: - | AG189: - | AH189: - | AI189: - | AJ189: - | AK189: - | AL189: - | AM189: - | AN189: - | AO189: - | AP189: - | AQ189: - | AR189: - | AS189: - | AT189: - | AU189: - | AV189: - | AW189: - | AX189: -
A190: 191 | B190: 电子考勤 | C190: 李文魁 | H190: =VLOOKUP(C190,企业管理结算!$D:$E,2,0) -> 300 | I190: 0 | T190: - | U190: - | V190: - | W190: - | X190: - | Y190: - | Z190: - | AA190: - | AB190: - | AC190: - | AD190: - | AE190: - | AF190: - | AG190: - | AH190: - | AI190: - | AJ190: - | AK190: - | AL190: - | AM190: - | AN190: - | AO190: - | AP190: - | AQ190: - | AR190: - | AS190: - | AT190: - | AU190: - | AV190: - | AW190: - | AX190: -
A191: 192 | B191: 电子考勤 | C191: 杨艳彬 | H191: =VLOOKUP(C191,企业管理结算!$D:$E,2,0) -> 350 | I191: 0 | T191: - | U191: - | V191: - | W191: - | X191: - | Y191: - | Z191: - | AA191: - | AB191: - | AC191: - | AD191: - | AE191: - | AF191: - | AG191: - | AH191: - | AI191: - | AJ191: - | AK191: - | AL191: - | AM191: - | AN191: - | AO191: - | AP191: - | AQ191: - | AR191: - | AS191: - | AT191: - | AU191: - | AV191: - | AW191: - | AX191: -
A192: 193 | B192: 电子考勤 | C192: 杨胜利 | H192: =VLOOKUP(C192,企业管理结算!$D:$E,2,0) -> 300 | I192: =H192*Q192 -> 0 | T192: - | U192: - | V192: - | W192: - | X192: - | Y192: - | Z192: - | AA192: - | AB192: - | AC192: - | AD192: - | AE192: - | AF192: - | AG192: - | AH192: - | AI192: - | AJ192: - | AK192: - | AL192: - | AM192: - | AN192: - | AO192: - | AP192: - | AQ192: - | AR192: - | AS192: - | AT192: - | AU192: - | AV192: - | AW192: - | AX192: -
A193: 194 | B193: 电子考勤 | C193: 郝月桥 | H193: =VLOOKUP(C193,企业管理结算!$D:$E,2,0) -> 300 | I193: 0 | T193: - | U193: - | V193: - | W193: - | X193: - | Y193: - | Z193: - | AA193: - | AB193: - | AC193: - | AD193: - | AE193: - | AF193: - | AG193: - | AH193: - | AI193: - | AJ193: - | AK193: - | AL193: - | AM193: - | AN193: - | AO193: - | AP193: - | AQ193: - | AR193: - | AS193: - | AT193: - | AU193: - | AV193: - | AW193: - | AX193: -
A194: 195 | B194: 电子考勤 | C194: 秦振文 | H194: =VLOOKUP(C194,企业管理结算!$D:$E,2,0) -> 340 | I194: 0 | T194: - | U194: - | V194: - | W194: - | X194: - | Y194: - | Z194: - | AA194: - | AB194: - | AC194: - | AD194: - | AE194: - | AF194: - | AG194: - | AH194: - | AI194: - | AJ194: - | AK194: - | AL194: - | AM194: - | AN194: - | AO194: - | AP194: - | AQ194: - | AR194: - | AS194: - | AT194: - | AU194: - | AV194: - | AW194: - | AX194: -
A195: 196 | B195: 电子考勤 | C195: 李文亮 | H195: =VLOOKUP(C195,企业管理结算!$D:$E,2,0) -> 300 | I195: 0 | T195: - | U195: - | V195: - | W195: - | X195: - | Y195: - | Z195: - | AA195: - | AB195: - | AC195: - | AD195: - | AE195: - | AF195: - | AG195: - | AH195: - | AI195: - | AJ195: - | AK195: - | AL195: - | AM195: - | AN195: - | AO195: - | AP195: - | AQ195: - | AR195: - | AS195: - | AT195: - | AU195: - | AV195: - | AW195: - | AX195: -
A196: 197 | B196: 电子考勤 | C196: 李文魁 | H196: =VLOOKUP(C196,企业管理结算!$D:$E,2,0) -> 300 | I196: 0 | T196: - | U196: - | V196: - | W196: - | X196: - | Y196: - | Z196: - | AA196: - | AB196: - | AC196: - | AD196: - | AE196: - | AF196: - | AG196: - | AH196: - | AI196: - | AJ196: - | AK196: - | AL196: - | AM196: - | AN196: - | AO196: - | AP196: - | AQ196: - | AR196: - | AS196: - | AT196: - | AU196: - | AV196: - | AW196: - | AX196: -
A197: 198 | B197: 电子考勤 | C197: 杨胜利 | H197: =VLOOKUP(C197,企业管理结算!$D:$E,2,0) -> 300 | I197: 0 | T197: - | U197: - | V197: - | W197: - | X197: - | Y197: - | Z197: - | AA197: - | AB197: - | AC197: - | AD197: - | AE197: - | AF197: - | AG197: - | AH197: - | AI197: - | AJ197: - | AK197: - | AL197: - | AM197: - | AN197: - | AO197: - | AP197: - | AQ197: - | AR197: - | AS197: - | AT197: - | AU197: - | AV197: - | AW197: - | AX197: -
A198: 199 | B198: 电子考勤 | C198: 郝月桥 | H198: =VLOOKUP(C198,企业管理结算!$D:$E,2,0) -> 300 | I198: 0 | T198: - | U198: - | V198: - | W198: - | X198: - | Y198: - | Z198: - | AA198: - | AB198: - | AC198: - | AD198: - | AE198: - | AF198: - | AG198: - | AH198: - | AI198: - | AJ198: - | AK198: - | AL198: - | AM198: - | AN198: - | AO198: - | AP198: - | AQ198: - | AR198: - | AS198: - | AT198: - | AU198: - | AV198: - | AW198: - | AX198: -
A199: 200 | B199: 电子考勤 | C199: 秦振文 | H199: =VLOOKUP(C199,企业管理结算!$D:$E,2,0) -> 340 | I199: 0 | T199: - | U199: - | V199: - | W199: - | X199: - | Y199: - | Z199: - | AA199: - | AB199: - | AC199: - | AD199: - | AE199: - | AF199: - | AG199: - | AH199: - | AI199: - | AJ199: - | AK199: - | AL199: - | AM199: - | AN199: - | AO199: - | AP199: - | AQ199: - | AR199: - | AS199: - | AT199: - | AU199: - | AV199: - | AW199: - | AX199: -

Sheet 企业管理结算
R1: 考勤表 总工合计 | S1: 考勤表 包工合计 | T1: 考勤表 总工资 | U1: 支款表 支款合计 | V1: 汇总表各月支款合计 | W1: 支款汇总差额 | AG1: 差额 | AH1: 支款合计
R2: =考勤!Q1 -> 74.6 | T2: =考勤!I1 -> 23500 | U2: =支款表!H1 -> 2056.47 | V2: =U3+V3+W3+X3+Y3+Z3+AA3+AB3+AC3+AD3+AE3 -> 0 | W2: =U2-V2 -> 2056.47 | AG2: =R2-R3+S2-S3+T2-T3+U2-V2 -> 2056.47
F3: =SUM(F5:F338) -> 74.6 | G3: =SUM(G5:G25) -> 0 | H3: =SUM(H5:H9780) -> 0 | I3: =SUM(I5:I100) -> 0 | J3: =SUM(J5:J100) -> 0 | K3: 0 | L3: 0 | M3: 0 | N3: =SUM(N5:N31) -> 0 | O3: =SUM(O5:O100) -> 0 | P3: =SUM(P5:P25) -> 0 | Q3: =SUM(Q5:Q25) -> 0 | R3: =SUM(R5:R31) -> 74.6 | S3: =SUM(S5:S444) -> 0 | T3: =SUM(T5:T420) -> 23500 | U3: 0 | V3: 0 | W3: 0 | X3: 0 | Y3: 0 | Z3: 0 | AA3: 0 | AB3: 0 | AC3: 0 | AD3: 0 | AE3: 0 | AF3: 0 | AG3: =SUM(AG5:AG422) -> 23500 | AH3: =SUM(AH5:AH427)-AF3 -> 0
A4: 序号 | B4: 备注 | C4: 公司 | D4: 姓名 | E4: 日工资 | F4: 2月 | G4: 3月 | H4: 4月 | I4: 5月 | J4: 6月 | K4: 7月 | L4: 8月 | M4: 9月 | N4: 10月 | O4: 11月 | P4: 12月 | Q4: 1月 | R4: 日工数合计 | S4: 包工金额 计提奖励 | T4: 总合计 | U4: 3月支款 | V4: 4月支款 | W4: 5月支款 | X4: 6月支款 | Y4: 7月支款 | Z4: 8月支款 | AA4: 9月支款 | AB4: 10月支款 | AC4: 11月支款 | AD4: 12月支款 | AE4: 1月支款 | AF4: 甲方代付未付 | AG4: 剩余工资 | AH4: 合计支款 | AJ4: 身份证号码 | AK4: 手机 | AL4: 银行卡号
A5: 1 | B5: 已调工资 | C5: 企业管理 | D5: 郝运堂 | E5: 280 | R5: =SUM(F5:Q5) -> 0 | T5: =E5*R5 -> 0 | AG5: =T5-AH5 -> 0 | AH5: =SUM(U5:AF5) -> 0 | AJ5: 132129196304242815 | AK5: 13623200340 | AL5: 6228480028330329278
A6: 2 | B6: 已调工资 | C6: 企业管理 | D6: 李桂丽 | E6: 160 | R6: 0 | T6: =E6*R6 -> 0 | AG6: 0 | AH6: 0 | AJ6: 22020219700602422X | AK6: 13704414219 | AL6: 6230520540008562574
A7: 3 | B7: 已调工资 | C7: 企业管理 | D7: 李文魁 | E7: 300 | R7: 0 | T7: 0 | AG7: 0 | AH7: 0 | AJ7: 132127196808051315 | AK7: 18348776985 | AL7: 6228480028213275572
A8: 4 | B8: 已调工资 | C8: 企业管理 | D8: 李文庆 | E8: 290 | R8: 0 | T8: 0 | AG8: 0 | AH8: 0 | AJ8: 132127197204281317 | AK8: 15269305926 | AL8: 6228481729052770073
A9: 5 | B9: 已调工资 | C9: 企业管理 | D9: 王胜山 | E9: 300 | R9: 0 | T9: 0 | AG9: 0 | AH9: 0 | AJ9: 132127197201121334 | AK9: 18830863784 | AL9: 6228480028238641675
A10: 6 | B10: 已调工资 | C10: 企业管理 | D10: 杨胜利 | E10: 300 | F10: 2.4 | R10: 2.4 | T10: 720 | AG10: 720 | AH10: 0 | AJ10: 132127196805071310 | AK10: 15100422924 | AL10: 6228481729166508575
A11: 7 | B11: 已调工资 | C11: 企业管理 | D11: 杨艳彬 | E11: 350 | F11: 19.2 | R11: 19.2 | T11: 6720 | AG11: 6720 | AH11: 0 | AJ11: 130432198910091318 | AK11: 15127005938 | AL11: 6228480028554962077
A12: 8 | B12: 已调工资 | C12: 企业管理 | D12: 张仲山 | E12: 240 | R12: 0 | T12: 0 | AG12: 0 | AH12: 0 | AJ12: 130425197708160350 | AK12: 18822534014 | AL12: 6228480028636574973
A13: 9 | C13: 企业管理 | D13: 陈彦锋 | E13: 260 | R13: 0 | T13: 0 | AG13: 0 | AH13: 0 | AJ13: 130434197506165272 | AK13: 18630075196 | AL13: 6212262002010327199
A14: 10 | C14: 企业管理 | D14: 程保军 | E14: 240 | R14: 0 | T14: 0 | AG14: 0 | AH14: 0 | AJ14: 130434197205253930 | AK14: 15133073234 | AL14: 6230521720018295774
A15: 11 | C15: 企业管理 | D15: 程彦彬 | E15: 250 | R15: 0 | T15: 0 | AG15: 0 | AH15: 0 | AJ15: 130434197108203974 | AK15: 15227438259 | AL15: 6228481721561196619
A16: 12 | C16: 企业管理 | D16: 付万亭 | E16: 270 | R16: 0 | T16: 0 | AG16: 0 | AH16: 0 | AJ16: 37252219650224141X | AK16: 15314152328 | AL16: 6228481009244087573
A17: 13 | C17: 企业管理 | D17: 郝月桥 | E17: 300 | F17: 27 | R17: 27 | T17: 8100 | AG17: 8100 | AH17: 0 | AJ17: 132127197701051117 | AK17: 13821653212 | AL17: 6228480028061965878
A18: 14 | C18: 企业管理 | D18: 贺松 | E18: 310 | R18: 0 | T18: 0 | AG18: 0 | AH18: 0
A19: 15 | C19: 企业管理 | D19: 李书章 | E19: 380 | R19: 0 | T19: 0 | AG19: 0 | AH19: 0
A20: 16 | C20: 企业管理 | D20: 李旺 | E20: 250 | R20: 0 | T20: 0 | AG20: 0 | AH20: 0 | AJ20: 130434195708135216 | AK20: 18732033040 | AL20: 6228411724537027673
A21: 17 | C21: 企业管理 | D21: 李文亮 | E21: 300 | F21: 22 | R21: 22 | T21: 6600 | AG21: 6600 | AH21: 0 | AJ21: 132127198203021315 | AK21: 13920444413 | AL21: 6228480028692374979
A22: 18 | C22: 企业管理 | D22: 李新贞 | E22: 250 | R22: 0 | T22: 0 | AG22: 0 | AH22: 0 | AJ22: 130434195811135214 | AK22: 17182287290 | AL22: 6228480028634229273
A23: 19 | C23: 企业管理 | D23: 李旭朋 | R23: 0 | AG23: 0 | AH23: 0
A24: 20 | C24: 企业管理 | D24: 秦俊云 | R24: 0 | AG24: 0 | AH24: 0
A25: 21 | C25: 企业管理 | D25: 秦振文 | E25: 340 | F25: 4 | R25: 4 | T25: =E25*R25 -> 1360 | AG25: 1360 | AH25: 0 | AJ25: 132127197807211318 | AK25: 13596205945 | AL25: 6228480028886047274
A26: 22 | C26: 企业管理 | D26: 王红福 | E26: 285 | R26: 0 | T26: 0 | AG26: 0 | AH26: 0 | AJ26: 132127196812181315 | AK26: 13483066967 | AL26: 6228481729168037672
A27: 23 | C27: 企业管理 | D27: 王涛1 | E27: 270 | R27: 0 | T27: 0 | AG27: 0 | AH27: 0
A28: 24 | C28: 企业管理 | D28: 王新波 | E28: 260 | R28: 0 | T28: 0 | AG28: 0 | AH28: 0 | AJ28: 130434198412125215 | AK28: 15630055152 | AL28: 6217000066029809170
A29: 25 | C29: 企业管理 | D29: 尹书臣 | E29: 260 | R29: 0 | T29: 0 | AG29: 0 | AH29: 0 | AJ29: 132127196611130132 | AK29: 13785054846 | AL29: 6228480028881785274
A30: 26 | C30: 企业管理 | D30: 张占亮 | E30: 240 | R30: 0 | T30: 0 | AG30: 0 | AH30: 0

Sheet 支款表
H1: =SUBTOTAL(9,H3:H77) -> 2056.47
A2: 序号 | B2: 批次 | C2: 类别 | D2: 日期 | E2: 摘要 | F2: 身份证号 | G2: 姓名 | H2: 支款金额 | I2: 编号 | J2: 转账结果 | K2: 凭证字号 | L2: 备注
A3: 1 | B3: 1 | C3: 众慧建筑个税 | D3: 2023-03-01 | E3: 个税 | F3: 132127196808051315 | G3: 李文魁 | H3: 750 | I3: 1
A4: 3 | B4: 1 | C4: 众慧建筑个税 | D4: 2023-03-01 | E4: 个税 | F4: 13212719671030111X | G4: 李春喜 | H4: 57.48 | I4: 1
A5: 4 | B5: 1 | C5: 众慧建筑个税 | D5: 2023-03-01 | E5: 个税 | F5: 132129196304242815 | G5: 郝运堂 | H5: 150 | I5: 1
A6: 5 | B6: 1 | C6: 众慧建筑个税 | D6: 2023-03-01 | E6: 个税 | F6: 37252219650224141X | G6: 付万亭 | H6: 48.99 | I6: 1
A7: 6 | B7: 1 | C7: 众慧建筑个税 | D7: 2023-03-01 | E7: 个税 | F7: 132127197201121334 | G7: 王胜山 | H7: 300 | I7: 1
A8: 7 | B8: 1 | C8: 众慧建筑个税 | D8: 2023-03-01 | E8: 个税 | F8: 132127196805071310 | G8: 杨胜利 | H8: 450 | I8: 1
A9: 8 | B9: 1 | C9: 众慧建筑个税 | D9: 2023-03-01 | E9: 个税 | F9: 130425197708160350 | G9: 张仲山 | H9: 300 | I9: 1
A10: 9
A11: 10
A12: 11
A13: 12
A14: 13
A15: 14
A16: 15
A17: 16
A18: 17
A19: 18
A20: 19
A21: 20
A22: 21
A23: 22
A24: 23
A25: 24
A26: 25
A27: 26
A28: 27
A29: 28
A30: 29
A31: 30
A32: 31
A33: 32
A34: 33
A35: 34
A36: 35
A37: 36
A38: 37
A39: 38
A40: 39
A41: 40
A42: 41
A43: 42
A44: 43
A45: 44
A46: 45
A47: 46
A48: 47
A49: 48
A50: 49
A51: 50
A52: 51
A53: 52
A54: 53
A55: 54
A56: 55
A57: 56
A58: 57
A59: 58
A60: 59
A61: 60
A62: 61
A63: 62
A64: 63
A65: 64
A66: 65
A67: 66
A68: 67
A69: 68
A70: 69
A71: 70
A72: 71
A73: 72
A74: 73
A75: 74
A76: 75
A77: 76
